{"text_format":"3","workbook":"xlsx","n_sheets":10,"sheets":["Portada","Antes de Empezar","Instrucciones","Parte 1","Parte 2","Parte 3","Parte 4","Directriz de Conciliación","Listados","Causas eKOGUI"],"not_rendered":{"images":3,"macros":1,"defined_names":3},"read":"whole","date_system":"1900"}

{"sheet":"Portada","index":0,"n_rows":17,"n_cols":4,"rows_kept":17,"merged":[[8,2,8,13],[11,2,12,2],[11,3,12,13],[14,2,14,13]]}
{"$rows_empty":8}
[null,null,"Aplicativo Directriz de Conciliación"]
[]
[]
[null,null,"Entidad"]
[]
[]
[null,null,"ANDJE - Modelo Óptimo de Gestión para la Defensa Jurídica del Estado - MOG"]
[]
[null,null,"Fecha","2021-06-04"]

{"sheet":"Antes de Empezar","index":1,"n_rows":19,"n_cols":4,"rows_kept":19,"merged":[[3,2,3,13],[5,2,5,13],[7,3,15,12],[18,3,18,12]]}
[]
[]
[]
[null,null,"ANTES DE EMPEZAR"]
[]
[null,null,"INTRODUCCIÓN"]
[]
[{"$nulls":3},"Este aplicativo establece los pasos y actividades que deben seguir los comités de conciliación de las Entidades Públicas para fijar las directrices institucionales de conciliación señaladas en el numeral 4 del artículo 2.2.4.3.1.2.5 del Decreto 1069 de 2015. Con esta herramienta se busca optimizar, estandarizar, agilizar la toma de decisiones frente a las solicitudes de conciliación, mejorar los tiempos de respuesta y brindar seguridad jurídica, fortaleciendo así la defensa jurídica del Estado.\n\nLa metodología se puede aplicar cuantas veces sea necesario, dependiendo del volumen de solicitudes de conciliación, demandas o sentencias de cada entidad, para los casos en que se decida conciliar y para aquellos en que se opte por no hacerlo. No obstante, la herramienta solo le permite construir una directriz de conciliación por subcausa priorizada. Para generar otra directriz tendrá que diligenciar la información requerida en una nuevo aplicativo.\n"]
{"$rows_empty":10}
[{"$nulls":3},"Nota: Este documento puede ser objeto de modificación por la ANDJE a medida que se avance en la implementación del MOG en las entidades."]

{"sheet":"Instrucciones","index":2,"n_rows":173,"n_cols":9,"rows_kept":173,"merged":[[4,2,4,13],[7,2,7,13],[9,2,9,13],[11,2,11,13],[13,2,31,13],[34,6,34,7],[34,8,34,9],[35,6,35,7],[35,8,35,9],[36,6,36,7],[36,8,36,9],[37,6,37,7],[37,8,37,9],[38,6,38,7],[38,8,38,9],[39,6,39,7],[39,8,39,9],[41,2,57,13],[59,2,59,13],[61,2,61,13],[63,2,63,13],[65,2,70,13],[72,2,79,13],[81,2,81,13],[83,2,95,13],[97,2,129,13],[131,2,138,13],[140,2,148,13],[150,2,156,13],[158,2,158,13],[160,2,160,13],[162,2,170,13],[172,2,182,13]]}
[]
[]
[]
[]
[null,null,"Instrucciones"]
[]
[]
[null,null,"Parte 1"]
[]
[null,null,"1. Identificación y priorización de las causas"]
[]
[null,null,"Para cumplir con este paso el comité de conciliación deberá realizar las siguientes actividades:  \n"]
[]
[null,null,"1.1. Identificación del insumo\n\nPara empezar, se debe seleccionar el insumo que se utilizará para desarrollar la directriz de conciliación. Este insumo se obtiene de la información registrada por las entidades en el Sistema Único de Gestión e Información Litigiosa del Estado eKOGUI (Tener en cuenta que este Sistema aplica únicamente para las Entidades Públicas del Orden Nacional y que las entidades territoriales deben obtener los insumos de sus propios registros). Para efectos de esta metodología se consideran insumos los siguientes: \n\n(i) Las solicitudes de conciliación presentadas a la entidad como mínimo en los últimos seis meses. Si en este período de tiempo la entidad no tiene solicitudes de conciliación o no las considera representativas podrá ir aumentando el tiempo de estudio de acuerdo con la situación particular.\n\n(ii) En caso de no tener solicitudes de conciliación, la entidad podrá tomar como insumo las demandas o sentencias ejecutoriadas en el último año, contado a partir de la fecha en que comience la elaboración de la directriz.\n\nEn caso de tener un gran volumen de insumos, se podrá tomar una muestra representativa de las solicitudes de conciliación o de las demandas o las sentencias por rangos, de acuerdo con lo señalado en la siguiente tabla:"]
{"$rows_empty":20}
[{"$nulls":6},"Insumo",null,"Muestra"]
[{"$nulls":6},"Mayores a 1.000",null,"Mínimo 100"]
[{"$nulls":6},"Entre 501 y 1.000",null,"Mínimo 80"]
[{"$nulls":6},"Entre 101 y 500",null,"Mínimo el 10%"]
[{"$nulls":6},"Entre 11 y 100",null,"Mínimo 10"]
[{"$nulls":6},"10 o menos",null,"Todas"]
[]
[null,null,"1.2. Identificación y priorización de causas\n\nIdentificados y seleccionados los insumos, estos se deben agrupar por causas. Una vez agrupados los insumos conforme a lo señalado previamente, el comité de conciliación debe:\n\n(i) Verificar si para las causas identificadas, por vía legal o jurisprudencial, se prohibió la conciliación como mecanismo alternativo de solución de conflictos .\n\n(ii) Priorizar la causa general. El criterio de priorización sugerido es el de la cantidad, es decir, se priorizará la causa que tenga el mayor número de insumos. No obstante, se pueden utilizar otros criterios que se consideren relevantes, tales como, el valor de las pretensiones, la importancia jurídica del asunto, o cualquier otro criterio significativo para la entidad, los cuales deben quedar documentados.\n\n(iii) Si del resultado de priorización se encuentra que la causa que se debe priorizar ya tiene una directriz de conciliación, debe revisarse si es necesario actualizarla o si existe una subcausa diferente a la que se le pueda hacer directriz, si la respuesta es no, se aplicará la metodología a las causas que le siguen, según los criterios ya expuestos.\n"]
{"$rows_empty":17}
[null,null,"Parte 2"]
[]
[null,null,"2. Identificación y priorización de subcausas"]
[]
[null,null,"Para cumplir con este paso, el comité de conciliación deberá realizar las siguientes actividades:"]
[]
[null,null,"2.1. Identificación de subcausas \n\nLa subcausa es el hecho determinante del daño por el que se reclama la reparación. Se establece determinando las actuaciones de la administración que produjeron la causa priorizada y se extraen del análisis que se realiza al momento de relacionar el insumo con la causa. Pueden existir varias subcausas por causa priorizada."]
[]
[]
[]
[]
[]
[]
[null,null,"2.2 . Priorización de la subcausa\n\nIdentificadas las subcausas se deben organizar por cantidad de forma descendente. Posteriormente, se prioriza, por lo menos, una subcausa atendiendo al criterio de cantidad, es decir, la que tenga el mayor número de insumos. \n\nEl comité de conciliación puede priorizar la subcausa con base en otros criterios que considere relevantes; sin embargo, estos deben ser coherentes con la actividad litigiosa de la entidad y quedar documentados.\n"]
{"$rows_empty":8}
[null,null,"Parte 3"]
[]
[null,null,"3. Formulación del problema jurídico\n\nEl problema jurídico es un juicio de derecho en abstracto, cuya respuesta es siempre aplicable a los supuestos de hecho que lo fundamentan. Es la hoja de ruta que permite identificar las fuentes jurídicas, realizar la respectiva investigación, y justificar la directriz que se pretende formular.\n\nDe acuerdo con esta metodología, el problema jurídico es más general que el de un caso concreto. Para formular el problema jurídico es necesario:\n\n●  Identificar los hechos relevantes de la subcausa priorizada.\n● Determinar los aspectos jurídicos relevantes de los hechos de la subcausa priorizada.\n● Presentar en forma de pregunta lo señalado previamente.\n"]
{"$rows_empty":13}
[null,null,"4. Precisión de las fuentes jurídicas\n\nPara efectos de la aplicación de esta metodología, las fuentes jurídicas son los medios que utiliza el derecho para expresarse y a los cuales deben sujetarse los jueces y operadores jurídicos en virtud de su fuerza vinculante. Estas fuentes sirven de base para dar respuesta al problema jurídico. Para esta metodología son fuentes jurídicas las siguientes: \n\n• Régimen normativo\n\nSon las normas que hacen parte del ordenamiento constitucional, legal y reglamentario que rigen la materia contemplada en el problema jurídico formulado, y que establecen el contenido, alcance y condiciones que gobiernan las obligaciones y actividades administrativas implícitas en los supuestos que configuran el problema.\n\n• Reglas, criterios o pautas jurisprudenciales\n\nSon los pronunciamientos de las Altas Cortes que configuran precedentes judiciales, más precisamente la razón de la decisión (ratio decidendi), que resuelve el problema jurídico identificado. Deben ser pronunciamientos que contengan la línea jurisprudencial actualizada sobre la materia, o que sean identificadas como sentencias ‘hito’.\n \nResultan relevantes las providencias que aprueban o no los acuerdos conciliatorios (extrajudiciales o judiciales). Es recomendable consultar los documentos especializados de la ANDJE sobre líneas o tendencias jurisprudenciales, con el fin de facilitar su identificación.\n\n• Criterios conceptuales de autoridad\n\nSon los que profieren las entidades públicas que tienen competencias de carácter técnico y especializado, al igual que los pronunciamientos judiciales que responden a interrogantes específicos formulados por el Gobierno nacional, como los de la Sala de Consulta y Servicio Civil del Consejo de Estado. En este punto es importante advertir que las entidades públicas del orden nacional deben tener en cuenta los lineamientos formulados por la Agencia Nacional de Defensa Jurídica del Estado, en razón a su carácter obligatorio.\nEstos conceptos son relevantes en la medida en que pueden contribuir a lograr un mejor sustento de la respuesta al problema jurídico, pues se trata de supuestos de interpretación doctrinal, que pueden valorarse jurídicamente como un criterio auxiliar del sistema de fuentes de derecho de la Constitución."]
{"$rows_empty":33}
[null,null,"5. Presentación de la tesis \n\nLa tesis es la respuesta al problema jurídico propuesto y relacionado con la subcausa priorizada. En otras palabras, la tesis es responder sí o no al problema jurídico planteado y justificar dicha respuesta.\n\nEs posible que una misma subcausa tenga varios problemas jurídicos, en este caso cada uno debe contar con su propia respuesta. Por tal motivo es necesario adelantar la identificación de las fuentes jurídicas aplicables a cada problema propuesto, a fin de conseguir una adecuada solución.\n"]
{"$rows_empty":8}
[null,null,"6. Decisión del comité de conciliación\n\nEs la manifestación clara y concreta del comité de conciliación frente a si promueve o no la conciliación para todos los asuntos contemplados en la proposición planteada. La propuesta que se formula debe:\n\n● Permitir la identificación clara de los elementos de hecho y de derecho.\n● Realizarse sobre la subcausa, aun cuando existan casos donde la subcausa tenga varios problemas jurídicos.\n● Impartir una instrucción precisa de promover o no la conciliación.\n"]
{"$rows_empty":9}
[null,null,"7. Listado de las condiciones de aplicación\n\nSon las condiciones que se deben presentar a modo de ‘lista de chequeo’, para determinar si a una solicitud de conciliación específica le aplica la directriz formulada.\n\nEstas condiciones se establecen para cada directriz y se derivan de la respuesta al problema jurídico que dio lugar a la misma. La ‘lista de chequeo’ se integra con los distintos aspectos que contiene la respuesta al problema jurídico específico.\n"]
{"$rows_empty":7}
[null,null,"Parte 4"]
[]
[null,null,"8. Identificación de datos básicos de la directriz"]
[]
[null,null,"8.1.  Número: la directriz debe identificarse por medio del sistema de numeración adoptado por la entidad para facilitar su consulta.\n\n8.2.  Acta sesión: se debe establecer la fecha y el número de acta del comité de conciliación que aprobó la directriz.\n\n8.3.  Vigencia: se debe indicar la fecha desde que está vigente la directriz de conciliación. Si fue expedida con anterioridad a la implementación de esta metodología se indica la fecha en que fue aprobada por el comité de conciliación.\n"]
{"$rows_empty":9}
[null,null,"9. Aprobación de la directriz\n\nFinalizado el proceso de formulación de la directriz, el comité de conciliación debe aprobarla, con el fin de lograr su implementación y seguimiento. Para facilitar el seguimiento mencionado, la ANDJE propone el siguiente indicador:\n\n• Numerador: Número de casos a los que aplicó la directriz .\n• Denominador: Número de solicitudes totales de conciliación. \n\nFinalmente, si el comité de conciliación lo considera puede enviar a Asocapitales la directriz de conciliación, con el fin de que esta entidad realice la correspondiente revisión metodológica.\n"]

{"sheet":"Parte 1","index":3,"n_rows":31,"n_cols":14,"rows_kept":31,"merged":[[5,1,5,8],[7,1,7,3],[9,1,9,3],[10,7,12,8],[11,1,12,3],[14,1,14,3],[15,1,15,3],[15,9,16,9],[16,13,16,14],[17,1,17,3],[17,7,17,8],[17,13,17,14],[18,7,19,8],[18,13,18,14],[19,13,19,14],[20,13,20,14],[21,7,21,8],[21,13,21,14],[22,7,39,8],[22,13,22,14],[23,13,23,14],[24,13,24,14],[25,13,25,14],[26,13,26,14],[27,13,27,14],[28,13,28,14],[29,13,29,14],[30,13,30,14]]}
[]
[]
[]
[]
[]
[null,"PARTE 1"]
[]
[null,"1.1.          Identificación del insumo"]
[]
[null,"A continuación seleccione de la lista desplegable el tipo de insumo a utilizar:"]
[{"$nulls":7},"A continuación encontrará la causa priorizada según la información diligenciada previamente, si desea trabajar con ella seleccione \"SI\", de lo contrario seleccione \"NO\" y siga las indicaciones que posteriormente se muestran."]
[null,"Solicitudes de conciliación "]
[]
[]
[null,"1.2. Identificación y priorización de causas",{"$nulls":5},"Causa Priorizada","¿Desea trabajar esta causa?"]
[null,"Verifique si para las causas identificadas, por vía legal o jurisprudencial, se prohibió la conciliación como mecanismo alternativo de solución de conflictos. En ese caso no se puede construir la directriz de conciliación sobre esa causa.",{"$nulls":5},{"$f":"N17","v":"ILEGALIDAD DEL ACTO ADMINISTRATIVO QUE DECLARA LA INSUBSISTENCIA DE FUNCIONARIO EN PROVISIONALIDAD"},"SI"]
[{"$nulls":13},{"$f":"IFERROR(_xlfn.SINGLE(INDEX($C$21:$C$45,_xlfn.AGGREGATE(15,6,ROW($C$21:$C$45)-ROW($C$21)+1/($D$21:$D$45=MAX($D$21:$D$45))*1,ROWS($N$17:N17)),COLUMNS($N$17:N17))),\"\")","v":"ILEGALIDAD DEL ACTO ADMINISTRATIVO QUE DECLARA LA INSUBSISTENCIA DE FUNCIONARIO EN PROVISIONALIDAD"}]
[null,"Identifique y seleccione los insumos, estos se deben agrupar por causas. Una vez agrupados los insumos conforme a lo señalado previamente, diligencie la siguiente tabla:",{"$nulls":5},"Si desea trabajar con una causa diferente a la anteriormente indicada, justifique las razones y seleccione la nueva causa a priorizar de la lista desplegable que encuentra a continuación:",{"$nulls":5},{"$f":"IFERROR(_xlfn.SINGLE(INDEX($C$21:$C$45,_xlfn.AGGREGATE(15,6,ROW($C$21:$C$45)-ROW($C$21)+1/($D$21:$D$45=MAX($D$21:$D$45))*1,ROWS($N$17:N18)),COLUMNS($N$17:N18))),\"\")","v":""}]
[{"$nulls":13},{"$f":"IFERROR(_xlfn.SINGLE(INDEX($C$21:$C$45,_xlfn.AGGREGATE(15,6,ROW($C$21:$C$45)-ROW($C$21)+1/($D$21:$D$45=MAX($D$21:$D$45))*1,ROWS($N$17:N19)),COLUMNS($N$17:N19))),\"\")","v":""}]
[null,"N°","Causa","Cantidad de Insumos disponibles",{"$nulls":9},{"$f":"IFERROR(_xlfn.SINGLE(INDEX($C$21:$C$45,_xlfn.AGGREGATE(15,6,ROW($C$21:$C$45)-ROW($C$21)+1/($D$21:$D$45=MAX($D$21:$D$45))*1,ROWS($N$17:N20)),COLUMNS($N$17:N20))),\"\")","v":""}]
[null,null,"ILEGALIDAD DEL ACTO ADMINISTRATIVO QUE DECLARA LA INSUBSISTENCIA DE FUNCIONARIO EN PROVISIONALIDAD",19,{"$nulls":9},{"$f":"IFERROR(_xlfn.SINGLE(INDEX($C$21:$C$45,_xlfn.AGGREGATE(15,6,ROW($C$21:$C$45)-ROW($C$21)+1/($D$21:$D$45=MAX($D$21:$D$45))*1,ROWS($N$17:N21)),COLUMNS($N$17:N21))),\"\")","v":""}]
[{"$nulls":7},"Describa las razones por las que desea seleccionar una nueva causa:",{"$nulls":5},{"$f":"IFERROR(_xlfn.SINGLE(INDEX($C$21:$C$45,_xlfn.AGGREGATE(15,6,ROW($C$21:$C$45)-ROW($C$21)+1/($D$21:$D$45=MAX($D$21:$D$45))*1,ROWS($N$17:N22)),COLUMNS($N$17:N22))),\"\")","v":""}]
[{"$nulls":13},{"$f":"IFERROR(_xlfn.SINGLE(INDEX($C$21:$C$45,_xlfn.AGGREGATE(15,6,ROW($C$21:$C$45)-ROW($C$21)+1/($D$21:$D$45=MAX($D$21:$D$45))*1,ROWS($N$17:N23)),COLUMNS($N$17:N23))),\"\")","v":""}]
[{"$nulls":13},{"$f":"IFERROR(_xlfn.SINGLE(INDEX($C$21:$C$45,_xlfn.AGGREGATE(15,6,ROW($C$21:$C$45)-ROW($C$21)+1/($D$21:$D$45=MAX($D$21:$D$45))*1,ROWS($N$17:N24)),COLUMNS($N$17:N24))),\"\")","v":""}]
[{"$nulls":13},{"$f":"IFERROR(_xlfn.SINGLE(INDEX($C$21:$C$45,_xlfn.AGGREGATE(15,6,ROW($C$21:$C$45)-ROW($C$21)+1/($D$21:$D$45=MAX($D$21:$D$45))*1,ROWS($N$17:N25)),COLUMNS($N$17:N25))),\"\")","v":""}]
[{"$nulls":13},{"$f":"IFERROR(_xlfn.SINGLE(INDEX($C$21:$C$45,_xlfn.AGGREGATE(15,6,ROW($C$21:$C$45)-ROW($C$21)+1/($D$21:$D$45=MAX($D$21:$D$45))*1,ROWS($N$17:N26)),COLUMNS($N$17:N26))),\"\")","v":""}]
[{"$nulls":13},{"$f":"IFERROR(_xlfn.SINGLE(INDEX($C$21:$C$45,_xlfn.AGGREGATE(15,6,ROW($C$21:$C$45)-ROW($C$21)+1/($D$21:$D$45=MAX($D$21:$D$45))*1,ROWS($N$17:N27)),COLUMNS($N$17:N27))),\"\")","v":""}]
[{"$nulls":13},{"$f":"IFERROR(_xlfn.SINGLE(INDEX($C$21:$C$45,_xlfn.AGGREGATE(15,6,ROW($C$21:$C$45)-ROW($C$21)+1/($D$21:$D$45=MAX($D$21:$D$45))*1,ROWS($N$17:N28)),COLUMNS($N$17:N28))),\"\")","v":""}]
[{"$nulls":13},{"$f":"IFERROR(_xlfn.SINGLE(INDEX($C$21:$C$45,_xlfn.AGGREGATE(15,6,ROW($C$21:$C$45)-ROW($C$21)+1/($D$21:$D$45=MAX($D$21:$D$45))*1,ROWS($N$17:N29)),COLUMNS($N$17:N29))),\"\")","v":""}]
[{"$nulls":13},{"$f":"IFERROR(_xlfn.SINGLE(INDEX($C$21:$C$45,_xlfn.AGGREGATE(15,6,ROW($C$21:$C$45)-ROW($C$21)+1/($D$21:$D$45=MAX($D$21:$D$45))*1,ROWS($N$17:N30)),COLUMNS($N$17:N30))),\"\")","v":""}]
[{"$nulls":13},{"$f":"IFERROR(_xlfn.SINGLE(INDEX($C$21:$C$45,_xlfn.AGGREGATE(15,6,ROW($C$21:$C$45)-ROW($C$21)+1/($D$21:$D$45=MAX($D$21:$D$45))*1,ROWS($N$17:N31)),COLUMNS($N$17:N31))),\"\")","v":""}]

{"sheet":"Parte 2","index":4,"n_rows":31,"n_cols":14,"rows_kept":31,"merged":[[5,1,5,8],[8,1,8,3],[10,1,12,3],[10,7,12,8],[14,1,14,3],[15,1,15,3],[16,13,16,14],[17,7,17,8],[17,13,17,14],[18,7,18,8],[18,13,18,14],[19,13,19,14],[20,7,20,8],[20,13,20,14],[21,7,38,8],[21,13,21,14],[22,13,22,14],[23,13,23,14],[24,13,24,14],[25,13,25,14],[26,13,26,14],[27,13,27,14],[28,13,28,14],[29,13,29,14],[30,13,30,14]]}
[]
[]
[]
[]
[]
[null,"PARTE 2"]
[]
[]
[null,"2.1. Identificación de subcausas "]
[]
[null,"La subcausa es el hecho determinante del daño por el que se reclama la reparación. Determine las actuaciones de la administración que produjeron la causa priorizada. Pueden existir varias subcausas por causa priorizada.",{"$nulls":5},"A continuación encontrará la subcausa priorizada según la información diligenciada previamente, si desea trabajar con ella seleccione \"SI\", de lo contrario seleccione \"NO\" y siga las indicaciones que posteriormente se muestran."]
[]
[]
[]
[null,"2.2 . Priorización de la subcausa",{"$nulls":5},"Subcausa priorizada","¿Desea trabajar esta subcausa?"]
[null,"Identifique las subcausas y organícelas por cantidad. Una vez agrupados los insumos conforme a lo señalado previamente, diligencie la siguiente tabla:",{"$nulls":5},{"$f":"N17","v":"No tener en cuenta las condiciones especiales ( madre cabeza de familia, prepensionado,) del funcionario en provisionalidad "},"SI"]
[{"$nulls":13},{"$f":"IFERROR(_xlfn.SINGLE(INDEX($C$20:$C$44,_xlfn.AGGREGATE(15,6,ROW($C$20:$C$44)-ROW($C$20)+1/($D$20:$D$44=MAX($D$20:$D$44))*1,ROWS($N$17:N17)),COLUMNS($N$17:N17))),\"\")","v":"No tener en cuenta las condiciones especiales ( madre cabeza de familia, prepensionado,) del funcionario en provisionalidad "}]
[{"$nulls":7},"Si desea trabajar con una subcausa diferente a la anteriormente indicada, justifique las razones y escriba la nueva subcausa a priorizar a continuación:",{"$nulls":5},{"$f":"IFERROR(_xlfn.SINGLE(INDEX($C$20:$C$44,_xlfn.AGGREGATE(15,6,ROW($C$20:$C$44)-ROW($C$20)+1/($D$20:$D$44=MAX($D$20:$D$44))*1,ROWS($N$17:N18)),COLUMNS($N$17:N18))),\"\")","v":""}]
[null,"N°","Subcausa","Cantidad de Insumos disponibles",{"$nulls":9},{"$f":"IFERROR(_xlfn.SINGLE(INDEX($C$20:$C$44,_xlfn.AGGREGATE(15,6,ROW($C$20:$C$44)-ROW($C$20)+1/($D$20:$D$44=MAX($D$20:$D$44))*1,ROWS($N$17:N19)),COLUMNS($N$17:N19))),\"\")","v":""}]
[null,1,"No tener en cuenta las condiciones especiales ( madre cabeza de familia, prepensionado,) del funcionario en provisionalidad ",15,{"$nulls":9},{"$f":"IFERROR(_xlfn.SINGLE(INDEX($C$20:$C$44,_xlfn.AGGREGATE(15,6,ROW($C$20:$C$44)-ROW($C$20)+1/($D$20:$D$44=MAX($D$20:$D$44))*1,ROWS($N$17:N20)),COLUMNS($N$17:N20))),\"\")","v":""}]
[null,2,"Vulneración al debido proceso por vicio de la convocatoria pública de empleos que generó la desvinculación",2,{"$nulls":3},"Describa las razones por las que desea seleccionar una nueva subcausa:",{"$nulls":5},{"$f":"IFERROR(_xlfn.SINGLE(INDEX($C$20:$C$44,_xlfn.AGGREGATE(15,6,ROW($C$20:$C$44)-ROW($C$20)+1/($D$20:$D$44=MAX($D$20:$D$44))*1,ROWS($N$17:N21)),COLUMNS($N$17:N21))),\"\")","v":""}]
[null,3,"ERROR EN LA PUBLICACION DE LA OPEC",1,{"$nulls":3},"NINGUNA, SE TRABAJARA SOBRE SUBCAUSA PRIORIZADA",{"$nulls":5},{"$f":"IFERROR(_xlfn.SINGLE(INDEX($C$20:$C$44,_xlfn.AGGREGATE(15,6,ROW($C$20:$C$44)-ROW($C$20)+1/($D$20:$D$44=MAX($D$20:$D$44))*1,ROWS($N$17:N22)),COLUMNS($N$17:N22))),\"\")","v":""}]
[null,4,"INDEBIDA NOTIFICACIÓN DE ACTO ADMINISTRATIVO Y FALTA DE MOTIVACIÓN DEL ACTO ADMINISTRATIVO QUE DESVINCULA A FUNCIONARIO EN PROVISIONALIDAD",1,{"$nulls":9},{"$f":"IFERROR(_xlfn.SINGLE(INDEX($C$20:$C$44,_xlfn.AGGREGATE(15,6,ROW($C$20:$C$44)-ROW($C$20)+1/($D$20:$D$44=MAX($D$20:$D$44))*1,ROWS($N$17:N23)),COLUMNS($N$17:N23))),\"\")","v":""}]
[{"$nulls":13},{"$f":"IFERROR(_xlfn.SINGLE(INDEX($C$20:$C$44,_xlfn.AGGREGATE(15,6,ROW($C$20:$C$44)-ROW($C$20)+1/($D$20:$D$44=MAX($D$20:$D$44))*1,ROWS($N$17:N24)),COLUMNS($N$17:N24))),\"\")","v":""}]
[{"$nulls":13},{"$f":"IFERROR(_xlfn.SINGLE(INDEX($C$20:$C$44,_xlfn.AGGREGATE(15,6,ROW($C$20:$C$44)-ROW($C$20)+1/($D$20:$D$44=MAX($D$20:$D$44))*1,ROWS($N$17:N25)),COLUMNS($N$17:N25))),\"\")","v":""}]
[{"$nulls":13},{"$f":"IFERROR(_xlfn.SINGLE(INDEX($C$20:$C$44,_xlfn.AGGREGATE(15,6,ROW($C$20:$C$44)-ROW($C$20)+1/($D$20:$D$44=MAX($D$20:$D$44))*1,ROWS($N$17:N26)),COLUMNS($N$17:N26))),\"\")","v":""}]
[{"$nulls":13},{"$f":"IFERROR(_xlfn.SINGLE(INDEX($C$20:$C$44,_xlfn.AGGREGATE(15,6,ROW($C$20:$C$44)-ROW($C$20)+1/($D$20:$D$44=MAX($D$20:$D$44))*1,ROWS($N$17:N27)),COLUMNS($N$17:N27))),\"\")","v":""}]
[{"$nulls":13},{"$f":"IFERROR(_xlfn.SINGLE(INDEX($C$20:$C$44,_xlfn.AGGREGATE(15,6,ROW($C$20:$C$44)-ROW($C$20)+1/($D$20:$D$44=MAX($D$20:$D$44))*1,ROWS($N$17:N28)),COLUMNS($N$17:N28))),\"\")","v":""}]
[{"$nulls":13},{"$f":"IFERROR(_xlfn.SINGLE(INDEX($C$20:$C$44,_xlfn.AGGREGATE(15,6,ROW($C$20:$C$44)-ROW($C$20)+1/($D$20:$D$44=MAX($D$20:$D$44))*1,ROWS($N$17:N29)),COLUMNS($N$17:N29))),\"\")","v":""}]
[{"$nulls":13},{"$f":"IFERROR(_xlfn.SINGLE(INDEX($C$20:$C$44,_xlfn.AGGREGATE(15,6,ROW($C$20:$C$44)-ROW($C$20)+1/($D$20:$D$44=MAX($D$20:$D$44))*1,ROWS($N$17:N30)),COLUMNS($N$17:N30))),\"\")","v":""}]
[{"$nulls":13},{"$f":"IFERROR(_xlfn.SINGLE(INDEX($C$20:$C$44,_xlfn.AGGREGATE(15,6,ROW($C$20:$C$44)-ROW($C$20)+1/($D$20:$D$44=MAX($D$20:$D$44))*1,ROWS($N$17:N31)),COLUMNS($N$17:N31))),\"\")","v":""}]

{"sheet":"Parte 3","index":5,"n_rows":76,"n_cols":5,"rows_kept":76,"merged":[[5,1,5,12],[7,1,7,12],[9,1,9,12],[11,1,16,12],[18,1,20,2],[18,4,20,12],[22,1,22,12],[24,1,26,12],[28,1,28,12],[30,1,34,2],[30,4,34,12],[36,1,40,2],[36,4,40,12],[42,1,46,2],[42,4,46,12],[48,1,48,12],[50,1,51,12],[53,1,57,2],[53,4,57,12],[60,1,60,12],[62,1,63,12],[65,1,67,2],[65,4,67,12],[70,1,70,12],[72,1,73,12],[75,1,76,2],[75,4,76,12]]}
[]
[]
[]
[]
[]
[null,"PARTE 3"]
[]
[null,"A continuación podrá diligenciar cada uno de los elementos que componen la directriz de conciliación, tenga en cuenta que algunos elementos se cargan automáticamente de los pasos anteriores y no es necesario diligenciarlos."]
[]
[null,"3. Formulación del problema jurídico"]
[]
[null,"De acuerdo con esta metodología, el problema jurídico debe ser más general que el de un caso concreto. Para formular el problema jurídico es necesario:\n\n●  Identificar los hechos relevantes de la subcausa priorizada.\n● Determinar los aspectos jurídicos relevantes que deben ser considerados respecto de los hechos de la subcausa priorizada.\n● Presentar en forma de pregunta lo señalado previamente."]
[]
[]
[]
[]
[]
[]
[null,"Problema Jurídico:",null,null,"¿Es improcedente la desvinculación de un funcionario público en provisionalidad, que cuenta con condiciones especiales ( madre de cabeza de familia, enfermedad grave, prepensionado o fuero sindical) en virtud del nombramiento de un funcionario público escogido a traves de un concurso público de meritos?"]
[]
[]
[]
[null,"4. Precisión de las fuentes jurídicas"]
[]
[null,"Para efectos de la aplicación de esta metodología, las fuentes jurídicas son los medios que utiliza el derecho para expresarse y a los cuales deben sujetarse los jueces y operadores jurídicos en virtud de su fuerza vinculante. Estas fuentes sirven de base para dar respuesta al problema jurídico. Para esta metodología son fuentes jurídicas las siguientes: "]
[]
[]
[]
[null,"Diligéncielas a continuación:"]
[]
[null,"Régimen normativo:",null,null,"Constitucion Politica de articulo  125. Los empleos en los órganos y entidades del Estado son de carrera. Se exceptúan los de elección popular, los de libre nombramiento y remoción, los de trabajadores oficiales y los demás que determine la ley.\nLos funcionarios, cuyo sistema de nombramiento no haya sido determinado por la Constitución o la ley, serán nombrados por concurso público. El ingreso a los cargos de carrera y el ascenso en los mismos, se harán previo cumplimiento de los requisitos y condiciones que fije la ley para determinar los méritos y calidades de los aspirantes.El retiro se hará: por calificación no satisfactoria en el desempeño del empleo; por violación del régimen disciplinario y por las demás causales previstas en la Constitución o la ley. Ley 909 de 2004 articulo 2° ARTÍCULO 2o. PRINCIPIOS DE LA FUNCIÓN PÚBLICA.1. La función pública se desarrolla teniendo en cuenta los principios constitucionales de igualdad, mérito, moralidad, eficacia, economía, imparcialidad, transparencia, celeridad y publicidad. 2. El criterio de mérito, de las calidades personales y de la capacidad profesional, son los elementos sustantivos de los procesos de selección del personal que integra la función pública. Tales criterios se podrán ajustar a los empleos públicos de libre nombramiento y remoción, de acuerdo con lo previsto en la presente ley.3. Esta ley se orienta al logro de la satisfacción de los intereses generales y de la efectiva prestación del servicio, de lo que derivan tres criterios básicos:a) La profesionalización de los recursos humanos al servicio de la Administración Pública que busca la consolidación del principio de mérito y la calidad en la prestación del servicio público a los ciudadanos;b) La flexibilidad en la organización y gestión de la función pública para adecuarse a las necesidades cambiantes de la sociedad, flexibilidad que ha de entenderse sin detrimento de la estabilidad de que trata el artículo 27 de la presente ley;c) La responsabilidad de los servidores públicos por el trabajo desarrollado, que se concretará a través de los instrumentos de evaluación del desempeño y de los acuerdos de gestión;d) Capacitación para aumentar los niveles de eficacia.  ARTÍCULO 27 . Carrera Administrativa. La carrera administrativa es un sistema técnico de administración de personal que tiene por objeto garantizar la eficiencia de la administración pública y ofrecer; estabilidad e igualdad de oportunidades para el acceso y el ascenso al servicio público. Para alcanzar este objetivo, el ingreso y la permanencia en los empleos de carrera administrativa se hará exclusivamente con base en el mérito, mediante procesos de selección en los que se garantice la transparencia y la objetividad, sin discriminación alguna. Articulo ARTÍCULO 27 . Carrera Administrativa. La carrera administrativa es un sistema técnico de administración de personal que tiene por objeto garantizar la eficiencia de la administración pública y ofrecer; estabilidad e igualdad de oportunidades para el acceso y el ascenso al servicio público. Para alcanzar este objetivo, el ingreso y la permanencia en los empleos de carrera administrativa se hará exclusivamente con base en el mérito, mediante procesos de selección en los que se garantice la transparencia y la objetividad, sin discriminación alguna. Decreto 1083 de 2015 ARTÍCULO  2.2.5.3.1 Provisión de las vacancias definitivas. Las vacantes definitivas en empleos de libre nombramiento y remoción serán provistas mediante nombramiento ordinario o mediante encargo, previo cumplimiento de los requisitos exigidos para el desempeño del cargo.Las vacantes definitivas en empleos de carrera se proveerán en periodo de prueba o en ascenso, con las personas que hayan sido seleccionadas mediante el sistema de mérito, de conformidad con lo establecido en la Ley 909 de 2004 o en las disposiciones que regulen los sistemas específicos de carrera, según corresponda.Mientras se surte el proceso de selección, el empleo de carrera vacante de manera definitiva podrá proveerse transitoriamente a través de las figuras del encargo o del nombramiento provisional, en los términos señalados en la Ley 909 de 2004 y en el Decreto Ley 760 de 2005 o en las disposiciones que regulen los sistemas específicos de carrera.Las vacantes definitivas en empleo de periodo o de elección se proveerán siguiendo los procedimientos señalados en las leyes o decretos que los regulan.\n\n "]
[]
[]
[]
[]
[]
[null,"Reglas, criterios o pautas jurisprudenciales:",null,null,"Sentencia SU-917 del 2010, Sentencia SU 446 de 2011,SU 070 de 2013, SU 691 de 2017"]
[]
[]
[]
[]
[]
[null,"Criterios conceptuales de autoridad:",null,null,"Concepto 090671 de 2021 Departamento Administrativo de la Función Pública\". En conclusión, los servidores públicos que ocupan en provisionalidad un cargo de carrera gozan de una estabilidad laboral relativa, lo que implica que únicamente pueden ser removidos por causas legales que obran como razones objetivas que deben expresarse claramente en el acto de desvinculación, dentro de las que se encuentra la provisión  del cargo que ocupaban, con una persona de la lista de elegibles conformada previo concurso de méritos. En esta hipótesis, la estabilidad laboral relativa de las personas vinculadas en provisionalidad cede frente al mejor derecho de quienes superaron el respectivo concurso. En ese sentido, la situación de quienes ocupan en provisionalidad cargos de carrera administrativa, encuentra protección constitucional, en la medida en que, en igualdad de condiciones pueden participar en los concursos y gozan de estabilidad laboral, condicionada al lapso de duración del proceso de selección y hasta tanto sean reemplazados por quien se haya hecho acreedor a ocupar el cargo en virtud de sus méritos evaluados previamente.\" Concepto 140641 de 2020: \" Para los demás servidores en condiciones especiales, madres, padres cabeza de familia y en situación de discapacidad que vayan a ser des­vinculados como consecuencia de aplicación de una lista de elegibles, la administración deberá adelantar acciones afirmativas para que en lo posible sean reubicados en otros empleos vacantes o sean los últimos en ser retirados. En dicho sentido, la Corte Constitucional ha reconocido que dentro de las personas que ocupan en provisionalidad cargos de carrera, pueden encontrarse sujetos de especial protección constitucional, como servidores en condiciones especiales, las madres y padres cabeza de familia, quienes están próximos a pensionarse y las personas en situación de discapacidad, a los que, si bien por esa sola circunstancia no se les otorga un derecho indefinido a permanecer en ese tipo de vinculación laboral, en virtud del derecho ostentado por las personas que acceden por concurso de méritos, sí surge una obligación jurídico constitucional (art. 13) de propiciarse un trato preferencial como medida de acción afirmativa.\""]
[]
[]
[]
[]
[]
[null,"5. Presentación de la tesis"]
[]
[null,"La tesis es la respuesta al problema jurídico propuesto y relacionado con la subcausa priorizada. En otras palabras, la tesis es responder sí o no al problema jurídico planteado y justificar dicha respuesta."]
[]
[]
[null,"Tesis o respuesta al problema jurídico:",null,null,"No. No es improcedente su desvinculacion por cuanto la misma corresponde a la materializacion de  los principios de la funcion publica a saber:  igualdad, el merito,  moralidad,  trasparencia, imparcialidad, celeridad y publicidad. No obstante,  los funcionarios publicos que se desempeñan en cargos en provisionalidad en condiciones de especial proteccion,   tales como:  ser madre o padre  cabeza de familia, estar proximos a ser pensionados y funcionarios con perdida de capacidad laboral en lo posible,    serán reubicados en otros empleos vacantes o sean los últimos en ser retirados, cumplimiendo la obigacion constitucional del articulo 13 de propiciarse un trato preferencial como medida de acción afirmativa."]
[]
[]
[]
[]
[]
[]
[null,"6. Decisión del comité de conciliación"]
[]
[null,"Es la manifestación clara y concreta del comité de conciliación frente a si promueve o no la conciliación para todos los asuntos contemplados en la proposición planteada. "]
[]
[]
[null,"Decisión del comité de conciliación:",null,null,"No conciliar las solicitudes de conciliacion prejudicial  que correspondan a solicitud de declartoria de ilegalidad del acto administrativo que declara la insubsistencia de funcionario en provisionalidad que se encuentren en condiciones de especial proteccion tales como: ser madre o padre  cabeza de familia, estar proximos a ser pensionados y funcionarios con perdida de capacidad laboral. "]
[]
[]
[]
[]
[null,"7. Listado de las condiciones de aplicación"]
[]
[null,"Son las condiciones que se deben presentar a modo de ‘lista de chequeo’, para determinar si a una solicitud de conciliación específica le aplica la directriz formulada."]
[]
[]
[null,"Listado de las condiciones de aplicación:",null,null,"1. Ser ex funcionario publico a traves de un nombramiento en provisionalidad. 2. No haberse presentado al concurso de merito y/o no formar parte de la lista de elegibles. 3. Esgrimir condiciones de especial proteccion tales como: ser madre o padre  cabeza de familia, estar proximos a ser pensionados y funcionarios con perdida de capacidad laboral. 4. Ser declaro insubsistente por acto administrativo debidamente motivado."]

{"sheet":"Parte 4","index":6,"n_rows":45,"n_cols":9,"rows_kept":45,"merged":[[5,1,5,12],[7,1,11,12],[13,1,13,12],[15,1,15,12],[17,1,17,12],[19,1,19,2],[19,4,19,5],[21,1,21,12],[23,1,23,12],[25,1,26,2],[28,1,28,2],[28,4,28,5],[31,1,31,12],[33,1,33,12],[35,1,36,2],[40,1,40,12],[41,8,42,9],[42,1,42,4],[44,1,44,4],[44,8,44,9]]}
[]
[]
[]
[]
[]
[null,"PARTE 4"]
[]
[null,"Estos datos se diligencian una vez el comité haya revisado y aprobado la directriz de conciliación.\n\nAl finalizar este paso, encontrará en la pestaña siguiente la directriz completamente diligenciada en un formato apto para impresión."]
[]
[]
[]
[]
[]
[null,"8. Identificación de datos básicos de la directriz"]
[]
[null,"8.1. Número de la directriz "]
[]
[null,"Diligencie el número de la directriz conforme el sistema de numeración adoptado por la entidad para facilitar su consulta."]
[]
[null,"Número de la directriz:",null,null,1]
[]
[null,"8.2. Acta sesión"]
[]
[null,"Diligencie la fecha y el número de acta del comité de conciliación que aprobó la directriz"]
[]
[null,"Fecha de aprobación:",null,null,"Día","Mes","Año"]
[]
[]
[null,"N° de Acta:"]
[]
[]
[null,"8.3. Vigencia de la directriz "]
[]
[null,"Diligencie la fecha de entrada en vigencia de la directriz:"]
[]
[null,"Fecha de entrada en vigencia:",null,null,"Día","Mes","Año"]
[]
[]
[]
[]
[null,"Indicador de implementación:"]
[{"$nulls":8},"Porcentaje de uso de la directriz de conciliación:"]
[null,"Número de casos a los que aplicó la directriz."]
[]
[null,"Número de solicitudes totales de conciliación.",{"$nulls":6},{"$f":"IFERROR(G43/G45,\"\")","v":""}]

{"sheet":"Directriz de Conciliación","index":7,"n_rows":81,"n_cols":4,"rows_kept":81,"merged":[[1,1,1,7],[4,1,4,7],[7,2,7,3],[10,2,10,3],[13,2,13,3],[16,1,16,7],[17,1,18,7],[19,1,19,7],[20,1,21,7],[22,1,22,7],[23,1,25,7],[29,1,29,7],[30,1,35,7],[36,1,36,7],[37,1,42,2],[37,3,42,7],[43,1,48,2],[43,3,48,7],[49,1,53,2],[49,3,53,7],[55,1,55,7],[56,1,61,7],[62,1,62,7],[63,1,63,7],[64,1,69,7],[70,1,70,7],[71,1,71,7],[72,1,75,7],[78,1,78,7],[80,1,80,2],[80,3,80,5]]}
[]
[null,"FORMATO DIRECTRIZ DE CONCILIACIÓN"]
[]
[]
[null,"DIRECTRIZ DE CONCILIACIÓN  "]
[]
[]
[null,"No:",{"$f":"'Parte 4'!E20","v":1}]
[]
[]
[null,"Fecha de aprobación:",{"$f":"'Parte 4'!E27&\" \"&\"de\"&\" \"&'Parte 4'!F27&\" \"&\"de\"&\" \"&'Parte 4'!G27","v":" de  de "}]
[]
[]
[null,"N° de Acta:",{"$f":"'Parte 4'!E29","v":0}]
[]
[]
[null,"Insumo"]
[null,{"$f":"'Parte 1'!B12","v":"Solicitudes de conciliación "}]
[]
[null,"Causa general"]
[null,{"$f":"IF('Parte 1'!I16=\"SI\",'Parte 1'!H16,'Parte 1'!H19)","v":"ILEGALIDAD DEL ACTO ADMINISTRATIVO QUE DECLARA LA INSUBSISTENCIA DE FUNCIONARIO EN PROVISIONALIDAD"}]
[]
[null,"Subcausa"]
[null,{"$f":"IF('Parte 2'!I16=\"SI\",'Parte 2'!H16,'Parte 2'!H19)","v":"No tener en cuenta las condiciones especiales ( madre cabeza de familia, prepensionado,) del funcionario en provisionalidad "}]
[]
[]
[]
[]
[]
[null,"Problema jurídico"]
[null,{"$f":"IF('Parte 3'!E19<>\"\",'Parte 3'!E19,\"\")","v":"¿Es improcedente la desvinculación de un funcionario público en provisionalidad, que cuenta con condiciones especiales ( madre de cabeza de familia, enfermedad grave, prepensionado o fuero sindical) en virtud del nombramiento de un funcionario público escogido a traves de un concurso público de meritos?"}]
[]
[]
[]
[]
[]
[null,"Fuentes jurídicas"]
[null,"Normativas:",null,{"$f":"IF('Parte 3'!E31<>\"\",'Parte 3'!E31,\"\")","v":"Constitucion Politica de articulo  125. Los empleos en los órganos y entidades del Estado son de carrera. Se exceptúan los de elección popular, los de libre nombramiento y remoción, los de trabajadores oficiales y los demás que determine la ley.\nLos funcionarios, cuyo sistema de nombramiento no haya sido determinado por la Constitución o la ley, serán nombrados por concurso público. El ingreso a los cargos de carrera y el ascenso en los mismos, se harán previo cumplimiento de los requisitos y condiciones que fije la ley para determinar los méritos y calidades de los aspirantes.El retiro se hará: por calificación no satisfactoria en el desempeño del empleo; por violación del régimen disciplinario y por las demás causales previstas en la Constitución o la ley. Ley 909 de 2004 articulo 2° ARTÍCULO 2o. PRINCIPIOS DE LA FUNCIÓN PÚBLICA.1. La función pública se desarrolla teniendo en cuenta los principios constitucionales de igualdad, mérito, moralidad, eficacia, economía, imparcialidad, transparencia, celeridad y publicidad. 2. El criterio de mérito, de las calidades personales y de la capacidad profesional, son los elementos sustantivos de los procesos de selección del personal que integra la función pública. Tales criterios se podrán ajustar a los empleos públicos de libre nombramiento y remoción, de acuerdo con lo previsto en la presente ley.3. Esta ley se orienta al logro de la satisfacción de los intereses generales y de la efectiva prestación del servicio, de lo que derivan tres criterios básicos:a) La profesionalización de los recursos humanos al servicio de la Administración Pública que busca la consolidación del principio de mérito y la calidad en la prestación del servicio público a los ciudadanos;b) La flexibilidad en la organización y gestión de la función pública para adecuarse a las necesidades cambiantes de la sociedad, flexibilidad que ha de entenderse sin detrimento de la estabilidad de que trata el artículo 27 de la presente ley;c) La responsabilidad de los servidores públicos por el trabajo desarrollado, que se concretará a través de los instrumentos de evaluación del desempeño y de los acuerdos de gestión;d) Capacitación para aumentar los niveles de eficacia.  ARTÍCULO 27 . Carrera Administrativa. La carrera administrativa es un sistema técnico de administración de personal que tiene por objeto garantizar la eficiencia de la administración pública y ofrecer; estabilidad e igualdad de oportunidades para el acceso y el ascenso al servicio público. Para alcanzar este objetivo, el ingreso y la permanencia en los empleos de carrera administrativa se hará exclusivamente con base en el mérito, mediante procesos de selección en los que se garantice la transparencia y la objetividad, sin discriminación alguna. Articulo ARTÍCULO 27 . Carrera Administrativa. La carrera administrativa es un sistema técnico de administración de personal que tiene por objeto garantizar la eficiencia de la administración pública y ofrecer; estabilidad e igualdad de oportunidades para el acceso y el ascenso al servicio público. Para alcanzar este objetivo, el ingreso y la permanencia en los empleos de carrera administrativa se hará exclusivamente con base en el mérito, mediante procesos de selección en los que se garantice la transparencia y la objetividad, sin discriminación alguna. Decreto 1083 de 2015 ARTÍCULO  2.2.5.3.1 Provisión de las vacancias definitivas. Las vacantes definitivas en empleos de libre nombramiento y remoción serán provistas mediante nombramiento ordinario o mediante encargo, previo cumplimiento de los requisitos exigidos para el desempeño del cargo.Las vacantes definitivas en empleos de carrera se proveerán en periodo de prueba o en ascenso, con las personas que hayan sido seleccionadas mediante el sistema de mérito, de conformidad con lo establecido en la Ley 909 de 2004 o en las disposiciones que regulen los sistemas específicos de carrera, según corresponda.Mientras se surte el proceso de selección, el empleo de carrera vacante de manera definitiva podrá proveerse transitoriamente a través de las figuras del encargo o del nombramiento provisional, en los términos señalados en la Ley 909 de 2004 y en el Decreto Ley 760 de 2005 o en las disposiciones que regulen los sistemas específicos de carrera.Las vacantes definitivas en empleo de periodo o de elección se proveerán siguiendo los procedimientos señalados en las leyes o decretos que los regulan.\n\n "}]
[]
[]
[]
[]
[]
[null,"Jurisprudenciales:",null,{"$f":"IF('Parte 3'!E37<>\"\",'Parte 3'!E37,\"\")","v":"Sentencia SU-917 del 2010, Sentencia SU 446 de 2011,SU 070 de 2013, SU 691 de 2017"}]
[]
[]
[]
[]
[]
[null,"Conceptuales:",null,{"$f":"IF('Parte 3'!E43<>\"\",'Parte 3'!E43,\"\")","v":"Concepto 090671 de 2021 Departamento Administrativo de la Función Pública\". En conclusión, los servidores públicos que ocupan en provisionalidad un cargo de carrera gozan de una estabilidad laboral relativa, lo que implica que únicamente pueden ser removidos por causas legales que obran como razones objetivas que deben expresarse claramente en el acto de desvinculación, dentro de las que se encuentra la provisión  del cargo que ocupaban, con una persona de la lista de elegibles conformada previo concurso de méritos. En esta hipótesis, la estabilidad laboral relativa de las personas vinculadas en provisionalidad cede frente al mejor derecho de quienes superaron el respectivo concurso. En ese sentido, la situación de quienes ocupan en provisionalidad cargos de carrera administrativa, encuentra protección constitucional, en la medida en que, en igualdad de condiciones pueden participar en los concursos y gozan de estabilidad laboral, condicionada al lapso de duración del proceso de selección y hasta tanto sean reemplazados por quien se haya hecho acreedor a ocupar el cargo en virtud de sus méritos evaluados previamente.\" Concepto 140641 de 2020: \" Para los demás servidores en condiciones especiales, madres, padres cabeza de familia y en situación de discapacidad que vayan a ser des­vinculados como consecuencia de aplicación de una lista de elegibles, la administración deberá adelantar acciones afirmativas para que en lo posible sean reubicados en otros empleos vacantes o sean los últimos en ser retirados. En dicho sentido, la Corte Constitucional ha reconocido que dentro de las personas que ocupan en provisionalidad cargos de carrera, pueden encontrarse sujetos de especial protección constitucional, como servidores en condiciones especiales, las madres y padres cabeza de familia, quienes están próximos a pensionarse y las personas en situación de discapacidad, a los que, si bien por esa sola circunstancia no se les otorga un derecho indefinido a permanecer en ese tipo de vinculación laboral, en virtud del derecho ostentado por las personas que acceden por concurso de méritos, sí surge una obligación jurídico constitucional (art. 13) de propiciarse un trato preferencial como medida de acción afirmativa.\""}]
[]
[]
[]
[]
[]
[null,"Tesis "]
[null,{"$f":"IF('Parte 3'!E54<>\"\",'Parte 3'!E54,\"\")","v":"No. No es improcedente su desvinculacion por cuanto la misma corresponde a la materializacion de  los principios de la funcion publica a saber:  igualdad, el merito,  moralidad,  trasparencia, imparcialidad, celeridad y publicidad. No obstante,  los funcionarios publicos que se desempeñan en cargos en provisionalidad en condiciones de especial proteccion,   tales como:  ser madre o padre  cabeza de familia, estar proximos a ser pensionados y funcionarios con perdida de capacidad laboral en lo posible,    serán reubicados en otros empleos vacantes o sean los últimos en ser retirados, cumplimiendo la obigacion constitucional del articulo 13 de propiciarse un trato preferencial como medida de acción afirmativa."}]
[]
[]
[]
[]
[]
[]
[null,"Decisión del comité de conciliación"]
[null,{"$f":"IF('Parte 3'!E66<>\"\",'Parte 3'!E66,\"\")","v":"No conciliar las solicitudes de conciliacion prejudicial  que correspondan a solicitud de declartoria de ilegalidad del acto administrativo que declara la insubsistencia de funcionario en provisionalidad que se encuentren en condiciones de especial proteccion tales como: ser madre o padre  cabeza de familia, estar proximos a ser pensionados y funcionarios con perdida de capacidad laboral. "}]
[]
[]
[]
[]
[]
[]
[null,"Listado de las condiciones de aplicación"]
[null,{"$f":"IF('Parte 3'!E76<>\"\",'Parte 3'!E76,\"\")","v":"1. Ser ex funcionario publico a traves de un nombramiento en provisionalidad. 2. No haberse presentado al concurso de merito y/o no formar parte de la lista de elegibles. 3. Esgrimir condiciones de especial proteccion tales como: ser madre o padre  cabeza de familia, estar proximos a ser pensionados y funcionarios con perdida de capacidad laboral. 4. Ser declaro insubsistente por acto administrativo debidamente motivado."}]
[]
[]
[]
[]
[]
[null,"Vigencia de la directriz"]
[]
[null,"Fecha de entrada en vigencia:",null,{"$f":"'Parte 4'!E37&\" \"&\"de\"&\" \"&'Parte 4'!F37&\" \"&\"de\"&\" \"&'Parte 4'!G37","v":" de  de "}]

{"sheet":"Listados","index":8,"n_rows":261,"n_cols":12,"rows_kept":261,"hidden":true}
[]
[]
[{"$nulls":7},"Insumos2",null,"Día","Mes","Año"]
["ID","ENTIDAD","NOM CORTO",null,null,"N/A",null,"Solicitudes de conciliación ",null,1,"Enero",2020]
[405,"ADMINISTRADORA COLOMBIANA DE PENSIONES - COLPENSIONES","COLPENSIONES",null,null,"SI",null,"Demandas",null,2,"Febrero",2021]
[1783,"ADMINISTRADORA DE LOS RECURSOS DEL SISTEMA GENERAL DE SEGURIDAD SOCIAL EN SALUD - ADRES","ADRES",null,null,"NO",null,"Sentencias ejecutoriadas ",null,3,"Marzo",2022]
[1700,"AGENCIA DE DESARROLLO RURAL - ADR","ADR",{"$nulls":6},4,"Abril",2023]
[1772,"AGENCIA DE RENOVACIÓN DEL TERRITORIO - ART","ART",{"$nulls":6},5,"Mayo",2024]
[113,"AGENCIA LOGÍSTICA DE LAS FUERZAS MILITARES - ALFM","ALFM",{"$nulls":6},6,"Junio",2025]
[391,"AGENCIA NACIONAL DE CONTRATACIÓN PÚBLICA - COLOMBIA COMPRA EFICIENTE","NO APLICA",{"$nulls":6},7,"Julio",2026]
[504,"AGENCIA NACIONAL DE DEFENSA JURÍDICA DEL ESTADO - ANDJE","ANDJE",{"$nulls":6},8,"Agosto",2027]
[179,"AGENCIA NACIONAL DE HIDROCARBUROS - ANH","ANH",{"$nulls":6},9,"Septiembre",2028]
[245,"AGENCIA NACIONAL DE INFRAESTRUCTURA - ANI","ANI",{"$nulls":6},10,"Octubre",2029]
[422,"AGENCIA NACIONAL DE MINERÍA - ANM","ANM",{"$nulls":6},11,"Noviembre",2030]
[1770,"AGENCIA NACIONAL DE SEGURIDAD VIAL - ANSV","ANSV",{"$nulls":6},12,"Diciembre"]
[1699,"AGENCIA NACIONAL DE TIERRAS - ANT","ANT",{"$nulls":6},13]
[390,"AGENCIA NACIONAL DEL ESPECTRO - ANE","ANE",{"$nulls":6},14]
[418,"AGENCIA NACIONAL INMOBILIARIA VIRGILIO BARCO VARGAS","NO APLICA ",{"$nulls":6},15]
[421,"AGENCIA PARA LA REINCORPORACIÓN Y LA NORMALIZACIÓN - ARN","ARN",{"$nulls":6},16]
[420,"AGENCIA PRESIDENCIAL DE COOPERACIÓN INTERNACIONAL DE COLOMBIA - APC","APC",{"$nulls":6},17]
[108,"ARCHIVO GENERAL DE LA NACIÓN - AGN","AGN",{"$nulls":6},18]
[162,"ARTESANÍAS DE COLOMBIA S.A.","NO APLICA",{"$nulls":6},19]
[197,"AUDITORÍA GENERAL DE LA REPÚBLICA - AGR","AGR",{"$nulls":6},20]
[384,"AUTORIDAD NACIONAL DE ACUICULTURA Y PESCA - AUNAP","AUNAP",{"$nulls":6},21]
[387,"AUTORIDAD NACIONAL DE LICENCIAS AMBIENTALES - ANLA","ANLA",{"$nulls":6},22]
[55,"BANCO AGRARIO DE COLOMBIA S.A. - BANAGRARIO","BANAGRARIO",{"$nulls":6},23]
[163,"BANCO DE COMERCIO EXTERIOR DE COLOMBIA S.A. - BANCÓLDEX","BANCÓLDEX",{"$nulls":6},24]
[435,"BANCO DE LA REPÚBLICA - BANREP","BANREP",{"$nulls":6},25]
[554,"CAJA DE COMPENSACIÓN FAMILIAR CAMPESINA -COMCAJA","COMCAJA",{"$nulls":6},26]
[114,"CAJA DE RETIRO DE LAS FUERZAS MILITARES - CREMIL","CREMIL",{"$nulls":6},27]
[115,"CAJA DE SUELDOS DE RETIRO DE LA POLICÍA NACIONAL - CASUR","CASUR",{"$nulls":6},28]
[116,"CAJA PROMOTORA DE VIVIENDA MILITAR Y DE POLICÍA - CAJAHONOR","CAJAHONOR",{"$nulls":6},29]
[235,"CÁMARA DE REPRESENTANTES","NO APLICA",{"$nulls":6},30]
[453,"CANAL REGIONAL DE TELEVISIÓN DEL CARIBE LTDA - TELECARIBE","TELECARIBE",{"$nulls":6},31]
[326,"CANAL REGIONAL DE TELEVISIÓN TEVEANDINA LTDA","TV ANDINA"]
[532,"CENIT TRANSPORTE Y LOGÍSTICA DE HIDROCARBUROS S.A.S. - CENIT","CENIT"]
[184,"CENTRALES ELÉCTRICAS DE NARIÑO S.A. E.S.P. - CEDENAR","CEDENAR"]
[310,"CENTRALES ELÉCTRICAS DEL CAUCA S.A. E.S.P. - CEDELCA","CEDELCA"]
[215,"CENTRO DERMATOLÓGICO FEDERICO LLERAS ACOSTA E.S.E.","NO APLICA"]
[396,"CENTRO NACIONAL DE MEMORIA HISTÓRICA","NO APLICA"]
[152,"CISA - CENTRAL DE INVERSIONES S.A.","CISA"]
[117,"CLUB MILITAR DE OFICIALES","CLUB MILITAR"]
[65,"COMISIÓN DE REGULACIÓN DE AGUA POTABLE Y SANEAMIENTO BÁSICO - CRA","CRA"]
[239,"COMISIÓN DE REGULACIÓN DE COMUNICACIONES - CRC","CRC"]
[185,"COMISIÓN DE REGULACIÓN DE ENERGÍA Y GAS - CREG","CREG"]
[204,"COMISIÓN NACIONAL DEL SERVICIO CIVIL - CNSC","CNSC"]
[3017,"COMISIÓN PARA EL ESCLARECIMIENTO DE LA VERDAD, LA CONVIVENCIA Y LA NO REPETICIÓN - CEV","CEV"]
[536,"COMPUTADORES PARA EDUCAR","NO APLICA"]
[437,"CONSEJO NACIONAL ELECTORAL - CNE","CNE"]
[1633,"CONSEJO PROFESIONAL NACIONAL DE ARQUITECTURA Y SUS PROFESIONALES AUXILIARES - CPNAA","CPNAA"]
[131,"CONSEJO PROFESIONAL NACIONAL DE INGENIERÍA - COPNIA","COPNIA"]
[199,"CONTRALORÍA GENERAL DE LA REPÚBLICA - CGR","CGR"]
[75,"CORPORACIÓN AUTÓNOMA REGIONAL DE BOYACÁ - CORPOBOYACÁ","CORPOBOYACÁ"]
[76,"CORPORACIÓN AUTÓNOMA REGIONAL DE CALDAS - CORPOCALDAS","CORPOCALDAS"]
[77,"CORPORACIÓN AUTÓNOMA REGIONAL DE CHIVOR - CORPOCHIVOR","CORPOCHIVOR"]
[78,"CORPORACIÓN AUTÓNOMA REGIONAL DE CUNDINAMARCA - CAR","CAR"]
[79,"CORPORACIÓN AUTÓNOMA REGIONAL DE LA FRONTERA NORORIENTAL - CORPONOR","CORPONOR"]
[80,"CORPORACIÓN AUTÓNOMA REGIONAL DE LA GUAJIRA - CORPOGUAJIRA","CORPOGUAJIRA"]
[81,"CORPORACIÓN AUTÓNOMA REGIONAL DE LA ORINOQUIA - CORPORINOQUIA","CORPORINOQUIA"]
[82,"CORPORACIÓN AUTÓNOMA REGIONAL DE LAS CUENCAS DE LOS RIOS NEGRO Y NARE – CORNARE","CORNARE"]
[84,"CORPORACIÓN AUTÓNOMA REGIONAL DE LOS VALLES DEL SINÚ Y DEL SAN JORGE - CVS","CVS"]
[85,"CORPORACIÓN AUTÓNOMA REGIONAL DE NARIÑO - CORPONARIÑO","CORPONARIÑO"]
[101,"CORPORACIÓN AUTÓNOMA REGIONAL DE RISARALDA - CARDER","CARDER"]
[102,"CORPORACIÓN AUTÓNOMA REGIONAL DE SANTANDER - CAS","CAS"]
[86,"CORPORACIÓN AUTÓNOMA REGIONAL DEL ALTO MAGDALENA - CAM","CAM"]
[284,"CORPORACIÓN AUTÓNOMA REGIONAL DEL ATLÁNTICO - CRA","CRA"]
[83,"CORPORACIÓN AUTÓNOMA REGIONAL DEL CANAL DEL DIQUE - CARDIQUE","CARDIQUE"]
[87,"CORPORACIÓN AUTÓNOMA REGIONAL DEL CAUCA - CRC","CRC"]
[103,"CORPORACIÓN AUTÓNOMA REGIONAL DEL CENTRO DE ANTIOQUIA - CORANTIOQUIA","CORANTIOQUIA"]
[288,"CORPORACIÓN AUTÓNOMA REGIONAL DEL CESAR - CORPOCESAR","CORPOCESAR"]
[89,"CORPORACIÓN AUTÓNOMA REGIONAL DEL GUAVIO - CORPOGUAVIO","CORPOGUAVIO"]
[90,"CORPORACIÓN AUTÓNOMA REGIONAL DEL MAGDALENA - CORPAMAG","CORPAMAG"]
[98,"CORPORACIÓN AUTÓNOMA REGIONAL DEL QUINDÍO - CRQ","CRQ"]
[91,"CORPORACIÓN AUTÓNOMA REGIONAL DEL RÍO GRANDE DE LA MAGDALENA - CORMAGDALENA","CORMAGDALENA"]
[92,"CORPORACIÓN AUTÓNOMA REGIONAL DEL SUCRE - CARSUCRE","CARSUCRE"]
[289,"CORPORACIÓN AUTÓNOMA REGIONAL DEL SUR DE BOLÍVAR - CSB","CARCSB"]
[93,"CORPORACIÓN AUTÓNOMA REGIONAL DEL TOLIMA - CORTOLIMA","CORTOLIMA"]
[285,"CORPORACIÓN AUTÓNOMA REGIONAL DEL VALLE DEL CAUCA - CVC","CVC"]
[106,"CORPORACIÓN AUTÓNOMA REGIONAL PARA EL DESARROLLO SOSTENIBLE DEL CHOCO - CODECHOCÓ","CODECHOCÓ"]
[94,"CORPORACIÓN AUTÓNOMA REGIONAL PARA LA DEFENSA DE LA MESETA DE BUCARAMANGA - CDMB","CDMB"]
[465,"CORPORACIÓN COLOMBIANA DE INVESTIGACIÓN AGROPECUARIA - AGROSAVIA","AGROSAVIA"]
[1523,"CORPORACIÓN DE ALTA TECNOLOGÍA PARA LA DEFENSA - CODALTEC","CODALTEC"]
[461,"CORPORACIÓN DE CIENCIA Y TECNOLOGÍA PARA EL DESARROLLO DE LA INDUSTRIA NAVAL MARÍTIMA Y FLUVIAL - COTECMAR","COTECMAR"]
[118,"CORPORACION DE LA INDUSTRIA AERONÁUTICA COLOMBIANA S.A. - CIAC","CIAC"]
[176,"CORPORACIÓN NACIONAL PARA LA RECONSTRUCCIÓN DE LA CUENCA DEL RÍO PÁEZ Y ZONAS ALEDANAS - NASA KIWE","NASA KIWE"]
[97,"CORPORACIÓN PARA EL DESARROLLO SOSTENIBLE DE LA MOJANA Y EL SAN JORGE - CORPOMOJANA","CORPOMOJANA"]
[95,"CORPORACIÓN PARA EL DESARROLLO SOSTENIBLE DEL ARCHIPIÉLAGO DE SAN ANDRÉS PROVIDENCIA Y SANTA CATALINA - CORALINA","CORALINA"]
[96,"CORPORACIÓN PARA EL DESARROLLO SOSTENIBLE DEL ÁREA DE MANEJO ESPECIAL LA MACARENA - CORMACARENA","CORMACARENA"]
[104,"CORPORACIÓN PARA EL DESARROLLO SOSTENIBLE DEL NORTE Y ORIENTE AMAZÓNICO - CDA","CDA"]
[107,"CORPORACIÓN PARA EL DESARROLLO SOSTENIBLE DEL SUR DE LA AMAZONÍA - CORPOAMAZONÍA","CORPOAMAZONÍA"]
[99,"CORPORACIÓN PARA EL DESARROLLO SOSTENIBLE DEL URABÁ - CORPOURABÁ","CORPOURABÁ"]
[120,"DEFENSA CIVIL COLOMBIANA","NO APLICA"]
[200,"DEFENSORÍA DEL PUEBLO","NO APLICA"]
[424,"DEPARTAMENTO ADMINISTRATIVO DE DIRECCIÓN NACIONAL DE INTELIGENCIA","NO APLICA"]
[150,"DEPARTAMENTO ADMINISTRATIVO DE LA FUNCIÓN PÚBLICA - DAFP","DAFP"]
[210,"DEPARTAMENTO ADMINISTRATIVO DE LA PRESIDENCIA DE LA REPÚBLICA - DAPRE","DAPRE"]
[148,"DEPARTAMENTO ADMINISTRATIVO NACIONAL DE ESTADÍSTICA - DANE","DANE"]
[394,"DEPARTAMENTO ADMINISTRATIVO PARA LA PROSPERIDAD SOCIAL - DPS","DPS"]
[205,"DEPARTAMENTO NACIONAL DE PLANEACIÓN - DNP","DNP"]
[426,"DIRECCIÓN EJECUTIVA DE ADMINISTRACIÓN JUDICIAL - DEAJ","DEAJ"]
[125,"DIRECCIÓN GENERAL DE LA POLICÍA NACIONAL - PONAL","PONAL"]
[1634,"DIRECCIÓN NACIONAL DE BOMBEROS DE COLOMBIA - DNBC","DNBC"]
[172,"DIRECCIÓN NACIONAL DE DERECHOS DE AUTOR - DNDA","DNDA"]
[186,"ELECTRIFICADORA DEL CAQUETÁ S.A. E.S.P - ELECTROCAQUETÁ","ELECTROCAQUETÁ"]
[478,"ELECTRIFICADORA DEL HUILA S.A. E.S.P. - ELECTROHUILA","ELECTROHUILA"]
[335,"ELECTRIFICADORA DEL META S.A. E.S.P - EMSA","EMSA"]
[188,"EMPRESA COLOMBIANA DE PETRÓLEOS - ECOPETROL","ECOPETROL"]
[67,"EMPRESA COLOMBIANA DE PRODUCTOS VETERINARIOS S.A. - VECOL","VECOL"]
[471,"EMPRESA DE ENERGÍA DEL ARCHIPIÉLAGO DE SAN ANDRÉS, PROVIDENCIA Y SANTA CATALINA S.A. E.S.P. - EEDAS","EEDAS S.A. E.S.P."]
[472,"EMPRESA DISTRIBUIDORA DEL PACIFICO S.A. E.S.P.","DISPAC"]
[411,"EMPRESA INDUSTRIAL Y COMERCIAL DEL ESTADO ADMINISTRADORA DEL MONOPOLIO RENTÍSTICO DE LOS JUEGOS DE SUERTE Y AZAR - COLJUEGOS","COLJUEGOS"]
[206,"EMPRESA NACIONAL PROMOTORA DEL DESARROLLO TERRITORIAL - ENTERRITORIO","ENTERRITORIO"]
[473,"EMPRESA PÚBLICA DE ALCANTARILLADO DE SANTANDER S.A. E.S.P. - EMPAS","EMPAS S.A. E.S.P."]
[484,"EMPRESA URRÁ S.A. E.S.P.","URRÁ"]
[151,"ESCUELA SUPERIOR DE ADMINISTRACIÓN PÚBLICA - ESAP","ESAP"]
[145,"ESCUELA TECNOLÓGICA INSTITUTO TÉCNICO CENTRAL - ITC","ITC"]
[1787,"ESENTTIA S.A.","ESENTTIA"]
[2989,"ESSENTIA MASTERBATCH LTDA","NO APLICA"]
[164,"FIDUCIARIA COLOMBIANA DE COMERCIO EXTERIOR S.A. - FIDUCOLDEX","FIDUCOLDEX"]
[154,"FIDUCIARIA LA PREVISORA S.A. - FIDUPREVISORA","FIDUPREVISORA"]
[190,"FINANCIERA DE DESARROLLO NACIONAL - FDN","FDN"]
[155,"FINANCIERA DE DESARROLLO TERRITORIAL S.A. - FINDETER","FINDETER"]
[232,"FISCALÍA GENERAL DE LA NACIÓN","NO APLICA"]
[438,"FONDO ADAPTACIÓN","NO APLICA"]
[201,"FONDO DE BIENESTAR SOCIAL DE LA CONTRALORÍA GENERAL DE LA REPÚBLICA","NO APLICA"]
[132,"FONDO DE DESARROLLO DE LA EDUCACIÓN SUPERIOR - FODESEP","FODESEP"]
[156,"FONDO DE GARANTÍAS DE ENTIDADES COOPERATIVAS - FOGACOOP","FOGACOOP"]
[165,"FONDO DE GARANTÍAS DE INSTITUCIONES FINANCIERAS - FOGAFÍN","FOGAFÍN"]
[217,"FONDO DE PASIVO SOCIAL DE FERROCARRILES NACIONALES DE COLOMBIA - FPS","FPS"]
[218,"FONDO DE PREVISIÓN SOCIAL DEL CONGRESO DE LA  REPÚBLICA - FONPRECON","FONPRECON"]
[240,"FONDO DE TECNOLOGÍAS DE LA INFORMACIÓN Y LAS COMUNICACIONES - FONTIC","FONTIC"]
[306,"FONDO NACIONAL AMBIENTAL - FONAM","FONAM"]
[166,"FONDO NACIONAL DE GARANTÍAS S.A. - FNG","FNG"]
[307,"FONDO NACIONAL DE VIVIENDA - FONVIVIENDA","FONVIVIENDA"]
[66,"FONDO NACIONAL DEL AHORRO – FNA","FNA"]
[61,"FONDO PARA EL FINANCIAMIENTO DEL SECTOR AGROPECUARIO - FINAGRO","FINAGRO"]
[121,"FONDO ROTATORIO DE LA POLICÍA NACIONAL - FORPO","FORPO"]
[317,"FONDO ROTATORIO DE LA REGISTRADURÍA NACIONAL DEL ESTADO CIVIL","NO APLICA"]
[236,"FONDO ROTATORIO DEL MINISTERIO DE RELACIONES EXTERIORES","NO APLICA"]
[448,"FONDO SOCIAL DE VIVIENDA DE LA REGISTRADURÍA NACIONAL DEL ESTADO CIVIL","NO APLICA"]
[191,"GENERADORA Y COMERCIALIZADORA DEL CARIBE S.A E.S.P. - GECELCA","GECELCA"]
[474,"GESTION ENERGETICA S.A. E.S.P. - GENSA","GENSA"]
[122,"HOSPITAL MILITAR CENTRAL","NO APLICA"]
[173,"IMPRENTA NACIONAL DE COLOMBIA","NO APLICA"]
[119,"INDUSTRIA MILITAR - INDUMIL","INDUMIL"]
[490,"INSTITUTO AMAZÓNICO DE INVESTIGACIONES CIENTÍFICAS - SINCHI","SINCHI"]
[109,"INSTITUTO CARO Y CUERVO","NO APLICA"]
[57,"INSTITUTO COLOMBIANO AGROPECUARIO - ICA","ICA"]
[110,"INSTITUTO COLOMBIANO DE ANTROPOLOGÍA E HISTORIA - ICANH","ICANH"]
[219,"INSTITUTO COLOMBIANO DE BIENESTAR FAMILIAR - ICBF","ICBF"]
[134,"INSTITUTO COLOMBIANO DE CRÉDITO Y ESTUDIOS TÉCNICOS EN EL EXTERIOR - ICETEX","ICETEX "]
[135,"INSTITUTO COLOMBIANO PARA LA EVALUACIÓN DE LA EDUCACIÓN - ICFES","ICFES"]
[123,"INSTITUTO DE CASAS FISCALES DEL EJÉRCITO - ICFE","ICFE"]
[64,"INSTITUTO DE HIDROLOGÍA, METEOROLOGÍA Y ESTUDIOS AMBIENTALES - IDEAM","IDEAM"]
[72,"INSTITUTO DE INVESTIGACIÓN DE RECURSOS BIOLÓGICOS ALEXANDER VON HUMBOLDT","HUMBOLDT"]
[491,"INSTITUTO DE INVESTIGACIONES AMBIENTALES DEL PACÍFICO JOHN VON NEUMANN","IIAP"]
[193,"INSTITUTO DE PLANIFICACIÓN Y PROMOCIÓN DE SOLUCIONES ENERGÉTICAS PARA LAS ZONAS NO INTERCONECTADAS – IPSE","IPSE"]
[149,"INSTITUTO GEOGRÁFICO AGUSTÍN CODAZZI - IGAC","IGAC"]
[221,"INSTITUTO NACIONAL DE CANCEROLOGÍA E.S.E. - INC","INC"]
[141,"INSTITUTO NACIONAL DE FORMACIÓN TÉCNICA PROFESIONAL DE SAN JUAN DEL CESAR - INFOTEP","INFOTEP"]
[137,"INSTITUTO NACIONAL DE FORMACIÓN TÉCNICA PROFESIONAL DEL DEPARTAMENTO DE SAN ANDRÉS, PROVIDENCIA Y SANTA CATALINA - INFOTEP","INFOTEP SAN ANDRÉS"]
[233,"INSTITUTO NACIONAL DE MEDICINA LEGAL Y CIENCIAS FORENSES","NO APLICA"]
[423,"INSTITUTO NACIONAL DE METROLOGÍA - INM","INM"]
[222,"INSTITUTO NACIONAL DE SALUD - INS","INS"]
[246,"INSTITUTO NACIONAL DE VÍAS - INVÍAS","INVÍAS"]
[223,"INSTITUTO NACIONAL DE VIGILANCIA DE MEDICAMENTOS Y ALIMENTOS - INVIMA","INVIMA"]
[138,"INSTITUTO NACIONAL PARA CIEGOS - INCI","INCI"]
[139,"INSTITUTO NACIONAL PARA SORDOS - INSOR","INSOR"]
[174,"INSTITUTO NACIONAL PENITENCIARIO Y CARCELARIO - INPEC","INPEC"]
[142,"INSTITUTO TÉCNICO NACIONAL DE COMERCIO SIMÓN RODRÍGUEZ - INTENALCO","INTENALCO"]
[146,"INSTITUTO TOLIMENSE DE FORMACIÓN TÉCNICA PROFESIONAL - ITFIP","ITFIP"]
[194,"INTERCONEXIÓN ELÉCTRICA S.A. E.S.P - ISA","ISA"]
[338,"INTERNEXA S.A.","NO APLICA"]
[557,"ISA INTERCOLOMBIA S.A. E.S.P.","INTERCOLOLOMBIA"]
[2921,"JURISDICCIÓN ESPECIAL PARA LA PAZ - JEP","JEP"]
[157,"LA PREVISORA S.A. COMPAÑÍA DE SEGUROS","PREVISORA"]
[63,"MINISTERIO DE AGRICULTURA Y DESARROLLO RURAL - MINAGRICULTURA","MINAGRICULTURA"]
[386,"MINISTERIO DE AMBIENTE Y DESARROLLO SOSTENIBLE - MINAMBIENTE","MINAMBIENTE"]
[297,"MINISTERIO DE CIENCIA, TECNOLOGÍA E INNOVACIÓN","MINCIENCIAS"]
[169,"MINISTERIO DE COMERCIO, INDUSTRIA Y TURISMO - MINCIT","MINCIT"]
[112,"MINISTERIO DE CULTURA","MINCULTURA"]
[124,"MINISTERIO DE DEFENSA NACIONAL - MINDEFENSA","MINDEFENSA"]
[147,"MINISTERIO DE EDUCACIÓN NACIONAL - MEN","MEN"]
[348,"MINISTERIO DE HACIENDA Y CRÉDITO PÚBLICO - MINHACIENDA","MINHACIENDA"]
[415,"MINISTERIO DE JUSTICIA Y EL DERECHO - MINJUSTICIA","MINJUSTICIA"]
[196,"MINISTERIO DE MINAS Y ENERGÍA - MINMINAS","MINMINAS"]
[237,"MINISTERIO DE RELACIONES EXTERIORES - CANCILLERÍA","CANCILLERÍA"]
[401,"MINISTERIO DE SALUD Y PROTECCIÓN SOCIAL - MINSALUD","MINSALUD"]
[242,"MINISTERIO DE TECNOLOGÍAS DE LA INFORMACIÓN Y LAS COMUNICACIONES - MINTIC","MINTIC"]
[403,"MINISTERIO DE TRABAJO - MINTRABAJO","MINTRABAJO"]
[247,"MINISTERIO DE TRANSPORTE - MINTRANSPORTE","MINTRANSPORTE"]
[389,"MINISTERIO DE VIVIENDA, CIUDAD Y TERRITORIO - MINVIVIENDA","MINVIVIENDA"]
[111,"MINISTERIO DEL DEPORTE","MINDEPORTES"]
[407,"MINISTERIO DEL INTERIOR Y FONDO PARA LA PARTICIPACIÓN Y EL FORTALECIMIENTO DE LA DEMOCRACIA - MININTERIOR","MININTERIOR"]
[525,"OLEODUCTO BICENTENARIO DE COLOMBIA S.A.S.","NO APLICA"]
[485,"OLEODUCTO CENTRAL S.A.- OCENSA","OCENSA"]
[486,"OLEODUCTO DE COLOMBIA S.A.","NO APLICA"]
[74,"PARQUES NACIONALES NATURALES DE COLOMBIA","NO APLICA"]
[158,"POSITIVA COMPAÑÍA DE SEGUROS S.A.","POSITIVA"]
[202,"PROCURADURÍA GENERAL DE LA NACIÓN - PGN","PGN"]
[244,"RADIO TELEVISIÓN NACIONAL DE COLOMBIA - RTVC","RTVC"]
[487,"REFINERÍA DE CARTAGENA S.A.S - REFICAR","REFICAR"]
[203,"REGISTRADURÍA NACIONAL DEL ESTADO CIVIL ","NO APLICA"]
[225,"SANATORIO DE AGUA DE DIOS E.S.E.","NO APLICA"]
[226,"SANATORIO DE CONTRATACIÓN E.S.E.","NO APLICA"]
[234,"SENADO DE LA REPÚBLICA","SENADO"]
[126,"SERVICIO AÉREO A TERRITORIOS NACIONALES - SATENA","SATENA"]
[192,"SERVICIO GEOLÓGICO COLOMBIANO - SGC","SGC"]
[227,"SERVICIO NACIONAL DE APRENDIZAJE - SENA","SENA"]
[243,"SERVICIOS POSTALES NACIONALES S.A. - 4-72"," 4-72"]
[458,"SISTEMAS INTELIGENTES EN RED","NO APLICA"]
[442,"SOCIEDAD DE ACTIVOS ESPECIALES S.A.S. - SAE","SAE"]
[441,"SOCIEDAD DE TELEVISIÓN DE CALDAS, RISARALDA Y QUINDÍO LTDA - TELECAFÉ","TELECAFÉ LTDA"]
[56,"SOCIEDAD FIDUCIARIA DE DESARROLLO AGROPECUARIO S.A. - FIDUAGRARIA","FIDUAGRARIA"]
[127,"SOCIEDAD HOTELERA TEQUENDAMA S.A. - SHT","SHT"]
[170,"SUPERINTENDENCIA DE INDUSTRIA Y COMERCIO - SIC","SIC"]
[130,"SUPERINTENDENCIA DE LA ECONOMÍA SOLIDARIA - SUPERSOLIDARIA","SUPERSOLIDARIA"]
[175,"SUPERINTENDENCIA DE NOTARIADO Y REGISTRO - SUPERNOTARIADO","SUPERNOTARIADO"]
[248,"SUPERINTENDENCIA DE PUERTOS Y TRANSPORTE - SUPERTRANSPORTE","SUPERTRANSPORTE"]
[209,"SUPERINTENDENCIA DE SERVICIOS PÚBLICOS DOMICILIARIOS - SUPESERVICIOS","SUPESERVICIOS"]
[171,"SUPERINTENDENCIA DE SOCIEDADES - SUPERSOCIEDADES","SUPERSOCIEDADES"]
[128,"SUPERINTENDENCIA DE VIGILANCIA Y SEGURIDAD PRIVADA - SUPERVIGILANCIA","SUPERVIGILANCIA"]
[228,"SUPERINTENDENCIA DEL SUBSIDIO FAMILIAR - SUPERSUBSIDIO","SUPERSUBSIDIO"]
[159,"SUPERINTENDENCIA FINANCIERA DE COLOMBIA - SUPERFINANCIERA","SUPERFINANCIERA"]
[229,"SUPERINTENDENCIA NACIONAL DE SALUD - SUPERSALUD","SUPERSALUD"]
[475,"TRANSELCA S.A. E.S.P.","TRANSELCA"]
[534,"UNIDAD ADMINISTRATIVA ESPECIAL AGENCIA DEL INSPECTOR GENERAL DE TRIBUTOS, RENTAS Y CONTRIBUCIONES PARAFISCALES - ITRC","ITRC"]
[323,"UNIDAD ADMINISTRATIVA ESPECIAL CONTADURÍA GENERAL DE LA NACIÓN - CGN","CGN"]
[249,"UNIDAD ADMINISTRATIVA ESPECIAL DE AERONÁUTICA CIVIL - AEROCIVIL","AEROCIVIL"]
[467,"UNIDAD ADMINISTRATIVA ESPECIAL DE GESTIÓN DE RESTITUCIÓN DE TIERRAS DESPOJADAS","NO APLICA"]
[433,"UNIDAD ADMINISTRATIVA ESPECIAL DE GESTIÓN PENSIONAL Y CONTRIBUCIONES PARAFISCALES DE LA PROTECCIÓN SOCIAL - UGPP","UGPP"]
[404,"UNIDAD ADMINISTRATIVA ESPECIAL DE ORGANIZACIONES SOLIDARIAS - UAEOS","UAEOS"]
[1676,"UNIDAD ADMINISTRATIVA ESPECIAL DEL SERVICIO PÚBLICO DE EMPLEO","UAESPE"]
[309,"UNIDAD ADMINISTRATIVA ESPECIAL DIRECCIÓN DE IMPUESTOS Y ADUANAS NACIONALES - DIAN","DIAN"]
[445,"UNIDAD ADMINISTRATIVA ESPECIAL JUNTA CENTRAL DE CONTADORES","NO APLICA"]
[409,"UNIDAD ADMINISTRATIVA ESPECIAL MIGRACIÓN COLOMBIA","NO APLICA"]
[395,"UNIDAD ADMINISTRATIVA ESPECIAL PARA LA ATENCIÓN Y LA REPARACIÓN INTEGRAL A LAS VÍCTIMAS","NO APLICA"]
[161,"UNIDAD DE INFORMACIÓN Y ANÁLISIS FINANCIERO - UIAF","UIAF"]
[195,"UNIDAD DE PLANEACIÓN MINERO ENERGÉTICA - UPME","UPME"]
[383,"UNIDAD DE PLANIFICACIÓN DE TIERRAS RURALES, ADECUACIÓN DE TIERRAS Y USOS AGROPECUARIOS - UPRA","UPRA"]
[417,"UNIDAD DE SERVICIOS PENITENCIARIOS Y CARCELARIOS - USPEC","USPEC"]
[3009,"UNIDAD ESPECIAL PARA LA BÚSQUEDA DE PERSONAS DADAS POR DESAPARECIDAS EN EL CONTEXTO Y EN RAZÓN DEL CONFLICTO ARMADO - UBPD","UBPD"]
[408,"UNIDAD NACIONAL DE PROTECCIÓN - UNP","UNP"]
[419,"UNIDAD NACIONAL PARA LA GESTIÓN DEL RIESGO DE DESASTRES - UNGRD","UNGRD"]
[250,"UNIVERSIDAD COLEGIO MAYOR DE CUNDINAMARCA - UNICOLMAYOR","UNICOLMAYOR"]
[251,"UNIVERSIDAD DE CALDAS - UCALDAS","UCALDAS"]
[468,"UNIVERSIDAD DE CÓRDOBA - UNICÓRDOBA","UNICÓRDOBA"]
[252,"UNIVERSIDAD DE LA AMAZONÍA - UNIAMAZONÍA","UNIAMAZONÍA"]
[253,"UNIVERSIDAD DE LOS LLANOS - UNILLANOS","UNILLANOS"]
[254,"UNIVERSIDAD DEL CAUCA - UNICAUCA","UNICAUCA"]
[255,"UNIVERSIDAD DEL PACÍFICO - UNIPACÍFICO ","UNIPACÍFICO "]
[256,"UNIVERSIDAD MILITAR NUEVA GRANADA - UMNG","UMNG"]
[258,"UNIVERSIDAD NACIONAL ABIERTA Y A DISTANCIA - UNAD","UNAD"]
[278,"UNIVERSIDAD NACIONAL DE COLOMBIA - UNAL","UNAL"]
[262,"UNIVERSIDAD PEDAGÓGICA NACIONAL - UPN","UPN"]
[260,"UNIVERSIDAD PEDAGÓGICA Y TECNOLÓGICA DE COLOMBIA - UPTC","UPTC"]
[264,"UNIVERSIDAD POPULAR DEL CESAR - UNICESAR","UNICESAR"]
[261,"UNIVERSIDAD SURCOLOMBIANA - USCO","USCO"]
[259,"UNIVERSIDAD TECNOLÓGICA DE PEREIRA - UTP","UTP"]
[263,"UNIVERSIDAD TECNOLÓGICA DEL CHOCÓ DIEGO LUIS CÓRDOBA - UTCH","UTCH"]
[336,"XM COMPAÑÍA DE EXPERTOS EN MERCADOS S.A. E.S.P.","XM"]

{"sheet":"Causas eKOGUI","index":9,"n_rows":699,"n_cols":2,"rows_kept":699,"hidden":true}
["ID CAUSA","Causas e-KOGUI"]
[71,"ACCESION POR ALUVION"]
[72,"ACCESO CARNAL O ACTO SEXUAL CON INCAPAZ DE RESISTIR"]
[73,"ACCESO CARNAL O ACTO SEXUAL VIOLENTO"]
[74,"ACCIDENTE DE TRABAJO O ENFERMEDAD PROFESIONAL POR CULPA PATRONAL"]
[1066,"ACOSO LABORAL"]
[76,"ACOSO SEXUAL"]
[78,"ACTOS SEXUALES CON MENOR DE CATORCE AÑOS"]
[80,"ALLANAMIENTO ILEGAL"]
[82,"APREHENSION ILEGAL DE MERCANCIAS"]
[85,"CADUCIDAD DE LA ACCION SANCIONATORIA ADUANERA"]
[86,"CAPITALIZACION DE INTERESES"]
[87,"CAPTACION ILEGAL DE DINERO"]
[88,"CAUSA DIAN POR DEFINIR"]
[89,"COBRO INDEBIDO DE OBLIGACION"]
[90,"COMPETENCIA DESLEAL"]
[1082,"CONFIGURACION DEL CONTRATO REALIDAD"]
[92,"CONSTITUCION DE SERVIDUMBRE"]
[94,"CONTROVERSIAS SOBRE LAUDO ARBITRAL"]
[96,"CUMPLIMIENTO DE REQUISITOS LEGALES PARA LEVANTAMIENTO DE FUERO SINDICAL"]
[97,"CUMPLIMIENTO DE REQUISITOS LEGALES PARA LEVANTAMIENTO DE FUERO SINDICAL EN PROCESOS DE REESTRUCTURACION Y LIQUIDACION DE ENTIDADES PUBLICAS"]
[106,"DAÑO O AMENAZA AMBIENTAL POR ACTIVIDAD AGROPECUARIA"]
[107,"DAÑO O AMENAZA AMBIENTAL POR ACTIVIDAD DEL SECTOR DE HIDROCARBUROS"]
[108,"DAÑO O AMENAZA AMBIENTAL POR ACTIVIDAD INDUSTRIAL"]
[109,"DAÑO O AMENAZA AMBIENTAL POR ACTIVIDAD MINERA"]
[110,"DAÑO O AMENAZA AMBIENTAL POR ACTO TERRORISTA"]
[111,"DAÑO O AMENAZA AMBIENTAL POR CONTAMINACION AUDITIVA"]
[112,"DAÑO O AMENAZA AMBIENTAL POR CONTAMINACION POR OLORES"]
[113,"DAÑO O AMENAZA AMBIENTAL POR DESVIACION DEL CAUCE DE UN RIO"]
[114,"DAÑO O AMENAZA AMBIENTAL POR DISPOSICION FINAL DE RESIDUOS NUCLEARES"]
[115,"DAÑO O AMENAZA AMBIENTAL POR DISPOSICION FINAL DE RESIDUOS SOLIDOS"]
[116,"DAÑO O AMENAZA AMBIENTAL POR EJECUCION DE OBRA PUBLICA"]
[118,"DAÑO O AMENAZA AMBIENTAL POR ERRADICACION DE CULTIVOS ILICITOS"]
[119,"DAÑO O AMENAZA AMBIENTAL POR INCENDIO FORESTAL"]
[120,"DAÑO O AMENAZA AMBIENTAL POR INDEBIDA DISPOSICION DE DESECHOS HOSPITALARIOS"]
[121,"DAÑO O AMENAZA AMBIENTAL POR TALA MASIVA DE ARBOLES"]
[122,"DAÑO O AMENAZA AMBIENTAL POR VERTIMIENTO DE CONTAMINANTES"]
[123,"DAÑOS A BIENES CON AERONAVE OFICIAL"]
[124,"DAÑOS A BIENES CON ARMA DE DOTACION OFICIAL"]
[125,"DAÑOS A BIENES CON NAVE OFICIAL"]
[126,"DAÑOS A BIENES CON VEHICULO OFICIAL"]
[127,"DAÑOS A BIENES EN ACCIDENTE AEREO"]
[128,"DAÑOS A BIENES EN ACCIDENTE FLUVIAL"]
[129,"DAÑOS A BIENES EN ACCIDENTE MARITIMO"]
[130,"DAÑOS A BIENES EN COMBATE O ENFRENTAMIENTO"]
[131,"DAÑOS A BIENES EN ENFRENTAMIENTO ENTRE TROPAS"]
[132,"DAÑOS A BIENES EN ESTABLECIMIENTO EDUCATIVO"]
[133,"DAÑOS A BIENES EN MANIFESTACION PUBLICA"]
[134,"DAÑOS A BIENES EN OPERACION ADMINISTRATIVA"]
[135,"DAÑOS A BIENES EN OPERATIVO MILITAR"]
[136,"DAÑOS A BIENES EN ZONA DE DISTENSION"]
[137,"DAÑOS A BIENES POR ACTIVIDAD DEL SECTOR DE HIDROCARBUROS"]
[138,"DAÑOS A BIENES POR ACTIVIDAD MINERA"]
[139,"DAÑOS A BIENES POR ACTO TERRORISTA CONTRA INSTALACIONES, PERSONAJES O ELEMENTOS REPRESENTATIVOS DEL ESTADO"]
[140,"DAÑOS A BIENES POR ACTO TERRORISTA CONTRA POBLACION CIVIL"]
[141,"DAÑOS A BIENES POR ALUD DE TIERRA"]
[142,"DAÑOS A BIENES POR CAIDA DE ARBOL"]
[143,"DAÑOS A BIENES POR CONDUCCION DE ENERGIA ELECTRICA"]
[144,"DAÑOS A BIENES POR EJECUCION DE OBRA PUBLICA"]
[145,"DAÑOS A BIENES POR FALTA DE ADOPCION DE MEDIDAS DE PROTECCION Y SEGURIDAD"]
[146,"DAÑOS A BIENES POR FALTA DE ILUMINACION EN LA VIA PUBLICA"]
[147,"DAÑOS A BIENES POR FALTA DE SEÑALIZACION EN LA VIA PUBLICA"]
[148,"DAÑOS A BIENES POR INDEBIDA O INSUFICIENTE ADOPCION DE MEDIDAS DE PROTECCION Y SEGURIDAD"]
[149,"DAÑOS A BIENES POR INUNDACION"]
[150,"DAÑOS A BIENES POR MODIFICACION O REDUCCION DE LAS MEDIDAS DE PROTECCION Y SEGURIDAD"]
[151,"DAÑOS A BIENES POR RUINA DE EDIFICACION PUBLICA"]
[152,"DAÑOS A BIENES POR SEMOVIENTE DE PROPIEDAD DEL ESTADO"]
[153,"DAÑOS A BIENES POR USO EXCESIVO DE LA FUERZA"]
[154,"DAÑOS A BIENES POR VIA PUBLICA EN MAL ESTADO"]
[156,"DAÑOS CAUSADOS A BIENES EN PROCEDIMIENTO DE POLICIA"]
[157,"DAÑOS CAUSADOS A BIENES POR GRUPO ARMADO ILEGAL"]
[165,"DAÑOS CAUSADOS A FUNCIONARIO DE CARRERA ADMINISTRATIVA DURANTE LOS PROCESOS DE REESTRUCTURACION Y LIQUIDACION DE ENTIDADES PUBLICAS"]
[166,"DAÑOS CAUSADOS A FUNCIONARIO DE LIBRE NOMBRAMIENTO Y REMOCION DURANTE LOS PROCESOS DE REESTRUCTURACION Y LIQUIDACION DE ENTIDADES PUBLICAS"]
[167,"DAÑOS CAUSADOS A FUNCIONARIO EN PROVISIONALIDAD DURANTE LOS PROCESOS DE REESTRUCTURACION Y LIQUIDACION DE ENTIDADES PUBLICAS"]
[181,"DAÑOS CAUSADOS POR MEDIDA DE EXTINCION DE DOMINIO"]
[185,"DAÑOS DERIVADOS DE ACTO ADMINISTRATIVO LICITO"]
[186,"DAÑOS DERIVADOS DE LA ACTIVIDAD LEGISLATIVA"]
[202,"DECRETO INJUSTO DE MEDIDAS CAUTELARES SOBRE BIENES SUSCEPTIBLES DE COMISO EN PROCESOS PENALES"]
[203,"DEFECTUOSO FUNCIONAMIENTO DE LA ADMINISTRACION DE JUSTICIA"]
[205,"DENEGACION DE PETICION DE EXTENSION DE JURISPRUDENCIA"]
[206,"DESAPARICION FORZADA"]
[209,"DESCONOCIMIENTO DE TRASLADO DE REGIMEN PENSIONAL"]
[210,"DESCONOCIMIENTO DEL AMPARO POR RETEN SOCIAL POR CONDICION DE MADRE O PADRE CABEZA DE FAMILIA DURANTE LOS PROCESOS DE REESTRUCTURACION Y LIQUIDACION DE ENTIDADES PUBLICAS"]
[211,"DESCONOCIMIENTO DEL AMPARO POR RETEN SOCIAL POR CONDICION DE PERSONA CON DISCAPACIDAD DURANTE LOS PROCESOS DE REESTRUCTURACION Y LIQUIDACION DE ENTIDADES PUBLICAS"]
[212,"DESCONOCIMIENTO DEL AMPARO POR RETEN SOCIAL POR CONDICION DE PREPENSIONADO DURANTE LOS PROCESOS DE REESTRUCTURACION Y LIQUIDACION DE ENTIDADES PUBLICAS"]
[213,"DESCONOCIMIENTO DEL DERECHO A REUBICACION LABORAL"]
[214,"DESCONOCIMIENTO DEL FUERO SINDICAL"]
[215,"DESCONOCIMIENTO DEL FUERO SINDICAL EN LOS PROCESOS DE REESTRUCTURACION Y LIQUIDACION DE ENTIDADES PUBLICAS"]
[216,"DESCUENTO DE NOMINA NO AUTORIZADO"]
[217,"DESCUENTO ILEGAL A LA MESADA PENSIONAL"]
[1074,"DESEQUILIBRIO ECONOMICO DEL CONTRATO POR ACTOS O HECHOS DE LA ENTIDAD CONTRATANTE"]
[35,"DESEQUILIBRIO ECONOMICO DEL CONTRATO POR ACTOS O HECHOS DEL CONTRATISTA"]
[36,"DESEQUILIBRIO ECONOMICO DEL CONTRATO POR EL HECHO DEL PRINCIPE"]
[37,"DESEQUILIBRIO ECONOMICO DEL CONTRATO POR TEORIA DE LA IMPREVISION"]
[219,"DESLINDE Y AMOJONAMIENTO"]
[220,"DESMEJORA EN LAS CONDICIONES LABORALES"]
[221,"DESPIDO INDIRECTO DE FUNCIONARIO PUBLICO"]
[222,"DESPIDO INDIRECTO DE TRABAJADOR OFICIAL"]
[224,"DESPIDO SIN JUSTA CAUSA DE TRABAJADOR OFICIAL"]
[1083,"DESPIDO SIN JUSTA CAUSA DE TRABAJADOR VINCULADO A ENTIDAD PUBLICA DE REGIMEN DE DERECHO PRIVADO"]
[32,"DESPLAZAMIENTO FORZADO"]
[226,"DESPOJO JURIDICO Y MATERIAL DE TIERRAS"]
[228,"DIVISION DE LA COSA COMUN POR PARTE DE COMUNEROS O COPROPIETARIOS"]
[24,"EJECUCION DE PRESTACIONES SIN CONTRATO"]
[230,"EJECUCIONES EXTRAJUDICIALES PERPETRADAS POR AGENTES DEL ESTADO"]
[231,"EJECUCIONES EXTRAJUDICIALES PERPETRADAS POR TERCEROS CON PARTICIPACION DE AGENTES DEL ESTADO"]
[234,"ENAJENACION DE ACCIONES SIN EL CUMPLIMIENTO DE LOS REQUISITOS LEGALES"]
[238,"ERROR JUDICIAL"]
[239,"EXCESO EN EL COBRO DE INTERESES"]
[38,"EXISTENCIA O INEXISTENCIA DEL CONTRATO"]
[39,"EXTENSION DE LAS GARANTIAS CONTRACTUALES"]
[243,"EXTRACCION ILEGAL DE ORGANOS, TEJIDOS Y HUESOS"]
[244,"FACTURA EXPEDIDA SIN EL CUMPLIMIENTO DE LOS REQUISITOS LEGALES"]
[254,"FALTA DE MANTENIMIENTO DE BIEN INMUEBLE ARRENDADO"]
[255,"FALTA DE REPARACION INTEGRAL A VICTIMAS DEL CONFLICTO ARMADO INTERNO"]
[257,"HACINAMIENTO CARCELARIO"]
[1075,"ILEGALIDAD DE ACTO ADMINISTRATIVO DURANTE EL CONCURSO DE MÉRITOS PARA PROVEER CARGOS PÚBLICOS"]
[259,"ILEGALIDAD DEL ACTO ADMINISTRATIVO DE DESVINCULACION DE LOS MIEMBROS DE LA FUERZA PUBLICA POR LLAMAMIENTO A CALIFICAR SERVICIOS"]
[260,"ILEGALIDAD DEL ACTO ADMINISTRATIVO DE DESVINCULACION DE LOS MIEMBROS DE LA FUERZA PUBLICA POR RETIRO DISCRECIONAL"]
[261,"ILEGALIDAD DEL ACTO ADMINISTRATIVO DE LIQUIDACION OFICIAL DE AFORO IMPUESTO AL PATRIMONIO"]
[262,"ILEGALIDAD DEL ACTO ADMINISTRATIVO DE LIQUIDACION OFICIAL DE AFORO IMPUESTO CREE"]
[263,"ILEGALIDAD DEL ACTO ADMINISTRATIVO DE LIQUIDACION OFICIAL DE AFORO IMPUESTO DE RENTA Y COMPLEMENTARIOS"]
[264,"ILEGALIDAD DEL ACTO ADMINISTRATIVO DE LIQUIDACION OFICIAL DE AFORO IMPUESTO DE RETENCION EN LA FUENTE"]
[265,"ILEGALIDAD DEL ACTO ADMINISTRATIVO DE LIQUIDACION OFICIAL DE AFORO IMPUESTO DE RIQUEZA"]
[266,"ILEGALIDAD DEL ACTO ADMINISTRATIVO DE LIQUIDACION OFICIAL DE AFORO IMPUESTO DE SEGURIDAD DEMOCRATICA"]
[267,"ILEGALIDAD DEL ACTO ADMINISTRATIVO DE LIQUIDACION OFICIAL DE AFORO IMPUESTO DE VENTAS"]
[268,"ILEGALIDAD DEL ACTO ADMINISTRATIVO DE LIQUIDACION OFICIAL DE AFORO IMPUESTO GMF"]
[269,"ILEGALIDAD DEL ACTO ADMINISTRATIVO DE LIQUIDACION OFICIAL DE CORRECCION IMPUESTO AL PATRIMONIO"]
[270,"ILEGALIDAD DEL ACTO ADMINISTRATIVO DE LIQUIDACION OFICIAL DE CORRECCION IMPUESTO CREE"]
[271,"ILEGALIDAD DEL ACTO ADMINISTRATIVO DE LIQUIDACION OFICIAL DE CORRECCION IMPUESTO DE RENTA Y COMPLEMENTARIOS"]
[272,"ILEGALIDAD DEL ACTO ADMINISTRATIVO DE LIQUIDACION OFICIAL DE CORRECCION IMPUESTO DE RETENCION EN LA FUENTE"]
[273,"ILEGALIDAD DEL ACTO ADMINISTRATIVO DE LIQUIDACION OFICIAL DE CORRECCION IMPUESTO DE RIQUEZA"]
[274,"ILEGALIDAD DEL ACTO ADMINISTRATIVO DE LIQUIDACION OFICIAL DE CORRECCION IMPUESTO DE SEGURIDAD DEMOCRATICA"]
[275,"ILEGALIDAD DEL ACTO ADMINISTRATIVO DE LIQUIDACION OFICIAL DE CORRECCION IMPUESTO DE VENTAS"]
[276,"ILEGALIDAD DEL ACTO ADMINISTRATIVO DE LIQUIDACION OFICIAL DE CORRECCION IMPUESTO GMF"]
[277,"ILEGALIDAD DEL ACTO ADMINISTRATIVO DE LIQUIDACION OFICIAL DE REVISION IMPUESTO AL CONSUMO"]
[278,"ILEGALIDAD DEL ACTO ADMINISTRATIVO DE LIQUIDACION OFICIAL DE REVISION IMPUESTO AL PATRIMONIO"]
[279,"ILEGALIDAD DEL ACTO ADMINISTRATIVO DE LIQUIDACION OFICIAL DE REVISION IMPUESTO CREE"]
[280,"ILEGALIDAD DEL ACTO ADMINISTRATIVO DE LIQUIDACION OFICIAL DE REVISION IMPUESTO DE RENTA Y COMPLEMENTARIOS"]
[281,"ILEGALIDAD DEL ACTO ADMINISTRATIVO DE LIQUIDACION OFICIAL DE REVISION IMPUESTO DE RETENCION EN LA FUENTE"]
[282,"ILEGALIDAD DEL ACTO ADMINISTRATIVO DE LIQUIDACION OFICIAL DE REVISION IMPUESTO DE RIQUEZA"]
[283,"ILEGALIDAD DEL ACTO ADMINISTRATIVO DE LIQUIDACION OFICIAL DE REVISION IMPUESTO DE SEGURIDAD DEMOCRATICA"]
[284,"ILEGALIDAD DEL ACTO ADMINISTRATIVO DE LIQUIDACION OFICIAL DE REVISION IMPUESTO DE VENTAS"]
[287,"ILEGALIDAD DEL ACTO ADMINISTRATIVO GENERAL QUE DISPONE LA REESTRUCTURACION O LIQUIDACION LAS ENTIDADES PUBLICAS"]
[289,"ILEGALIDAD DEL ACTO ADMINISTRATIVO QUE ADJUDICA UN BIEN INMUEBLE"]
[290,"ILEGALIDAD DEL ACTO ADMINISTRATIVO QUE ADJUDICA UN CONTRATO"]
[292,"ILEGALIDAD DEL ACTO ADMINISTRATIVO QUE APRUEBA CALCULO ACTUARIAL"]
[293,"ILEGALIDAD DEL ACTO ADMINISTRATIVO QUE APRUEBA TARIFAS DE ENERGIA Y GAS COMBUSTIBLE"]
[294,"ILEGALIDAD DEL ACTO ADMINISTRATIVO QUE AUTORIZA O NIEGA UN ASCENSO"]
[295,"ILEGALIDAD DEL ACTO ADMINISTRATIVO QUE CALIFICA LA PERDIDA DE CAPACIDAD LABORAL"]
[297,"ILEGALIDAD DEL ACTO ADMINISTRATIVO QUE CLAUSURA ESTABLECIMIENTO DE COMERCIO"]
[301,"ILEGALIDAD DEL ACTO ADMINISTRATIVO QUE CONVOCA A CONCURSO PUBLICO DE MERITOS PARA PROVEER CARGOS PUBLICOS"]
[302,"ILEGALIDAD DEL ACTO ADMINISTRATIVO QUE CREA UN IMPUESTO"]
[303,"ILEGALIDAD DEL ACTO ADMINISTRATIVO QUE CREA UNA CONTRIBUCION ESPECIAL"]
[304,"ILEGALIDAD DEL ACTO ADMINISTRATIVO QUE CREA UNA TASA"]
[965,"ILEGALIDAD DEL ACTO ADMINISTRATIVO QUE DA COMO NO PRESENTADA UNA DECLARACION TRIBUTARIA"]
[963,"ILEGALIDAD DEL ACTO ADMINISTRATIVO QUE DECIDE SOBRE TERMINACION POR MUTUO ACUERDO DE PROCESOS ADMINISTRATIVOS TRIBUTARIOS, ADUANEROS O CAMBIARIOS"]
[305,"ILEGALIDAD DEL ACTO ADMINISTRATIVO QUE DECLARA DESIERTA LA LICITACION"]
[960,"ILEGALIDAD DEL ACTO ADMINISTRATIVO QUE DECLARA EL INCUMPLIMIENTO DE UNA OBLIGACION ADUANERA Y ORDENA HACER EFECTIVA LA GARANTIA"]
[40,"ILEGALIDAD DEL ACTO ADMINISTRATIVO QUE DECLARA EL INCUMPLIMIENTO DEL CONTRATO"]
[306,"ILEGALIDAD DEL ACTO ADMINISTRATIVO QUE DECLARA EL RESULTADO DE UN PROCESO ELECTORAL"]
[41,"ILEGALIDAD DEL ACTO ADMINISTRATIVO QUE DECLARA LA CADUCIDAD CONTRACTUAL"]
[307,"ILEGALIDAD DEL ACTO ADMINISTRATIVO QUE DECLARA LA INSUBSISTENCIA DE FUNCIONARIO DE CARRERA"]
[308,"ILEGALIDAD DEL ACTO ADMINISTRATIVO QUE DECLARA LA INSUBSISTENCIA DE FUNCIONARIO DE LIBRE NOMBRAMIENTO Y REMOCION"]
[309,"ILEGALIDAD DEL ACTO ADMINISTRATIVO QUE DECLARA LA INSUBSISTENCIA DE FUNCIONARIO EN PROVISIONALIDAD"]
[42,"ILEGALIDAD DEL ACTO ADMINISTRATIVO QUE DECLARA LA OCURRENCIA DEL SINIESTRO Y ORDENA HACER EFECTIVA LA POLIZA"]
[961,"ILEGALIDAD DEL ACTO ADMINISTRATIVO QUE DECLARA LA PERDIDA O NO ACCESO A BENEFICIOS TRIBUTARIOS"]
[43,"ILEGALIDAD DEL ACTO ADMINISTRATIVO QUE DECLARA LA TERMINACION UNILATERAL DEL CONTRATO"]
[311,"ILEGALIDAD DEL ACTO ADMINISTRATIVO QUE DECRETA LA EXPROPIACION"]
[312,"ILEGALIDAD DEL ACTO ADMINISTRATIVO QUE DECRETA MEDIDAS CAUTELARES"]
[313,"ILEGALIDAD DEL ACTO ADMINISTRATIVO QUE DEFINE AVALUO CATASTRAL"]
[317,"ILEGALIDAD DEL ACTO ADMINISTRATIVO QUE DEJA SIN EFECTO FACILIDAD DE PAGO"]
[319,"ILEGALIDAD DEL ACTO ADMINISTRATIVO QUE DESVINCULA A SUPERNUMERARIO"]
[975,"ILEGALIDAD DEL ACTO ADMINISTRATIVO QUE DETERMINA SI PROCEDE LA RECUPERACION DE CONSUMOS DE SERVICIOS PUBLICOS DOMICILIARIOS NO FACTURADOS"]
[320,"ILEGALIDAD DEL ACTO ADMINISTRATIVO QUE DISPONE DECOMISO DE MERCANCIAS"]
[977,"ILEGALIDAD DEL ACTO ADMINISTRATIVO QUE DISPONE EL REINTEGRO DE RECURSOS A FAVOR DEL ESTADO"]
[974,"ILEGALIDAD DEL ACTO ADMINISTRATIVO QUE DISPONE LA TOMA DE POSESION DE UNA EMPRESA PRESTADORA DE SERVICIOS PUBLICOS DOMICILIARIOS"]
[321,"ILEGALIDAD DEL ACTO ADMINISTRATIVO QUE EFECTUA CLASIFICACION ARANCELARIA MERCANCIAS"]
[322,"ILEGALIDAD DEL ACTO ADMINISTRATIVO QUE ESTABLECE CUPOS DE COMBUSTIBLE LIBRE DE IMPUESTOS"]
[44,"ILEGALIDAD DEL ACTO ADMINISTRATIVO QUE HACE EFECTIVA LA CLAUSULA PENAL PECUNIARIA"]
[45,"ILEGALIDAD DEL ACTO ADMINISTRATIVO QUE IMPONE MULTA POR INCUMPLIMIENTO DEL CONTRATO"]
[326,"ILEGALIDAD DEL ACTO ADMINISTRATIVO QUE IMPONE SANCION A CONTADORES PUBLICOS"]
[327,"ILEGALIDAD DEL ACTO ADMINISTRATIVO QUE IMPONE SANCION A EMPRESA PRESTADORA DE SERVICIOS PUBLICOS DOMICILIARIOS POR VIOLACION AL ESTATUTO DEL CONSUMIDOR"]
[328,"ILEGALIDAD DEL ACTO ADMINISTRATIVO QUE IMPONE SANCION A ENTIDADES AUTORIZADAS PARA LA RECEPCION Y RECAUDO DE IMPUESTOS"]
[329,"ILEGALIDAD DEL ACTO ADMINISTRATIVO QUE IMPONE SANCION A LOS USUARIOS DE SERVICIOS PUBLICOS DOMICILIARIOS"]
[331,"ILEGALIDAD DEL ACTO ADMINISTRATIVO QUE IMPONE SANCION DISCIPLINARIA"]
[332,"ILEGALIDAD DEL ACTO ADMINISTRATIVO QUE IMPONE SANCION EN EJERCICIO DEL CONTROL FISCAL"]
[333,"ILEGALIDAD DEL ACTO ADMINISTRATIVO QUE IMPONE SANCION POR DECLARACION DE INSOLVENCIA"]
[334,"ILEGALIDAD DEL ACTO ADMINISTRATIVO QUE IMPONE SANCION POR DECLARACION DE PROVEEDOR FICTICIO O INSOLVENTE"]
[335,"ILEGALIDAD DEL ACTO ADMINISTRATIVO QUE IMPONE SANCION POR DEVOLUCION O COMPENSACION IMPROCEDENTE"]
[336,"ILEGALIDAD DEL ACTO ADMINISTRATIVO QUE IMPONE SANCION POR EXTEMPORANEIDAD DE LA PRESENTACION DE INFORMACION EXOGENA"]
[337,"ILEGALIDAD DEL ACTO ADMINISTRATIVO QUE IMPONE SANCION POR EXTEMPORANEIDAD EN LA DECLARACION INFORMATIVA DE PRECIOS DE TRANSFERENCIA"]
[338,"ILEGALIDAD DEL ACTO ADMINISTRATIVO QUE IMPONE SANCION POR EXTEMPORANEIDAD EN LA DOCUMENTACION COMPROBATORIA DE PRECIOS DE TRANSFERENCIA"]
[339,"ILEGALIDAD DEL ACTO ADMINISTRATIVO QUE IMPONE SANCION POR EXTEMPORANEIDAD EN LA INSCRIPCION EN EL REGISTRO NACIONAL DE VENDEDORES"]
[340,"ILEGALIDAD DEL ACTO ADMINISTRATIVO QUE IMPONE SANCION POR FALTA ADUANERA DE LOS AGENTES DE ADUANAS"]
[341,"ILEGALIDAD DEL ACTO ADMINISTRATIVO QUE IMPONE SANCION POR FALTA ADUANERA DE LOS AGENTES DE CARGA INTERNACIONAL"]
[343,"ILEGALIDAD DEL ACTO ADMINISTRATIVO QUE IMPONE SANCION POR FALTA ADUANERA DE LOS DECLARANTES EN EL REGIMEN DE EXPORTACION"]
[344,"ILEGALIDAD DEL ACTO ADMINISTRATIVO QUE IMPONE SANCION POR FALTA ADUANERA DE LOS DECLARANTES EN EL REGIMEN DE IMPORTACION"]
[345,"ILEGALIDAD DEL ACTO ADMINISTRATIVO QUE IMPONE SANCION POR FALTA ADUANERA DE LOS DECLARANTES EN EL REGIMEN DE TRANSITO ADUANERO"]
[346,"ILEGALIDAD DEL ACTO ADMINISTRATIVO QUE IMPONE SANCION POR FALTA ADUANERA DE LOS DEPOSITOS PUBLICOS Y PRIVADOS"]
[347,"ILEGALIDAD DEL ACTO ADMINISTRATIVO QUE IMPONE SANCION POR FALTA ADUANERA DE LOS INTERMEDIARIOS DE TRAFICO POSTAL Y ENVIOS URGENTES"]
[348,"ILEGALIDAD DEL ACTO ADMINISTRATIVO QUE IMPONE SANCION POR FALTA ADUANERA DE LOS TRANSPORTADORES"]
[349,"ILEGALIDAD DEL ACTO ADMINISTRATIVO QUE IMPONE SANCION POR FALTA ADUANERA DE LOS USUARIOS ADUANEROS PERMANENTES"]
[350,"ILEGALIDAD DEL ACTO ADMINISTRATIVO QUE IMPONE SANCION POR FALTA ADUANERA DE LOS USUARIOS INDUSTRIALES Y COMERCIALES DE ZONA FRANCA"]
[351,"ILEGALIDAD DEL ACTO ADMINISTRATIVO QUE IMPONE SANCION POR FALTA ADUANERA DE LOS USUARIOS OPERADORES DE ZONA FRANCA"]
[352,"ILEGALIDAD DEL ACTO ADMINISTRATIVO QUE IMPONE SANCION POR FALTA ADUANERA EN MATERIA DE VALORACION DE MERCANCIAS"]
[353,"ILEGALIDAD DEL ACTO ADMINISTRATIVO QUE IMPONE SANCION POR INCONSISTENCIAS EN LA DECLARACION INFORMATIVA DE PRECIOS DE TRANSFERENCIA"]
[354,"ILEGALIDAD DEL ACTO ADMINISTRATIVO QUE IMPONE SANCION POR INCONSISTENCIAS EN LA DOCUMENTACION COMPROBATORIA DE PRECIOS DE TRANSFERENCIA"]
[355,"ILEGALIDAD DEL ACTO ADMINISTRATIVO QUE IMPONE SANCION POR INCONSISTENCIAS EN LA PRESENTACION DE INFORMACION EXOGENA"]
[957,"ILEGALIDAD DEL ACTO ADMINISTRATIVO QUE IMPONE SANCION POR INDEBIDA CANALIZACION DE DIVISAS"]
[356,"ILEGALIDAD DEL ACTO ADMINISTRATIVO QUE IMPONE SANCION POR INFRACCION DE TRANSITO"]
[959,"ILEGALIDAD DEL ACTO ADMINISTRATIVO QUE IMPONE SANCION POR INFRACCIONES CAMBIARIAS"]
[357,"ILEGALIDAD DEL ACTO ADMINISTRATIVO QUE IMPONE SANCION POR LA NO PRESENTACION DE INFORMACION EXOGENA"]
[358,"ILEGALIDAD DEL ACTO ADMINISTRATIVO QUE IMPONE SANCION POR LA NO PRESENTACION DE LA DECLARACION INFORMATIVA DE PRECIOS DE TRANSFERENCIA"]
[359,"ILEGALIDAD DEL ACTO ADMINISTRATIVO QUE IMPONE SANCION POR LA NO PRESENTACION DE LA DOCUMENTACION COMPROBATORIA DE PRECIOS DE TRANSFERENCIA"]
[360,"ILEGALIDAD DEL ACTO ADMINISTRATIVO QUE IMPONE SANCION POR LA OMISION EN LA EXPEDICION DE CERTIFICADOS"]
[958,"ILEGALIDAD DEL ACTO ADMINISTRATIVO QUE IMPONE SANCION POR NO CANALIZACION DE DIVISAS"]
[361,"ILEGALIDAD DEL ACTO ADMINISTRATIVO QUE IMPONE SANCION POR NO PAGO DE APORTES PARAFISCALES"]
[966,"ILEGALIDAD DEL ACTO ADMINISTRATIVO QUE IMPONE SANCION POR NO PRESENTAR DECLARACION TRIBUTARIA"]
[362,"ILEGALIDAD DEL ACTO ADMINISTRATIVO QUE IMPONE SANCION POR OMISION EN LA OBLIGACION DE LLEVAR LIBROS DE CONTABILIDAD"]
[1076,"ILEGALIDAD DEL ACTO ADMINISTRATIVO QUE IMPONE SANCION POR OPERACIONES DE MERCADO LIBRE"]
[364,"ILEGALIDAD DEL ACTO ADMINISTRATIVO QUE IMPONE SANCION POR PRACTICA RESTRICTIVA DE LA COMPETENCIA"]
[365,"ILEGALIDAD DEL ACTO ADMINISTRATIVO QUE IMPONE SANCION POR VIOLACION DE NORMAS DE DERECHO LABORAL COLECTIVO"]
[366,"ILEGALIDAD DEL ACTO ADMINISTRATIVO QUE IMPONE SANCION POR VIOLACION DE NORMAS DE DERECHO LABORAL INDIVIDUAL"]
[367,"ILEGALIDAD DEL ACTO ADMINISTRATIVO QUE IMPONE SANCION POR VIOLACION DE NORMAS DE PROTECCION AMBIENTAL"]
[368,"ILEGALIDAD DEL ACTO ADMINISTRATIVO QUE IMPONE SANCION POR VIOLACION DE NORMAS DEL SISTEMA DE SEGURIDAD SOCIAL INTEGRAL"]
[369,"ILEGALIDAD DEL ACTO ADMINISTRATIVO QUE IMPONE SANCION POR VIOLACION DE NORMAS SOBRE CONTRATO DE APRENDIZAJE"]
[1077,"ILEGALIDAD DEL ACTO ADMINISTRATIVO QUE IMPONE SANCION RELACIONADA CON CUENTAS DE COMPENSACION"]
[370,"ILEGALIDAD DEL ACTO ADMINISTRATIVO QUE IMPONE SANCIONES DERIVADAS DE LA FACULTAD DE INSPECCION, VIGILANCIA Y CONTROL"]
[373,"ILEGALIDAD DEL ACTO ADMINISTRATIVO QUE INTERPRETA UNILATERALMENTE EL CONTRATO"]
[374,"ILEGALIDAD DEL ACTO ADMINISTRATIVO QUE LIBRA MANDAMIENTO DE PAGO"]
[962,"ILEGALIDAD DEL ACTO ADMINISTRATIVO QUE LIQUIDA IMPUESTO ARMAS, MUNICIONES Y EXPLOSIVOS"]
[378,"ILEGALIDAD DEL ACTO ADMINISTRATIVO QUE LIQUIDA LA PENSION - ACCION DE LESIVIDAD"]
[46,"ILEGALIDAD DEL ACTO ADMINISTRATIVO QUE LIQUIDA UN CONTRATO"]
[380,"ILEGALIDAD DEL ACTO ADMINISTRATIVO QUE LIQUIDA UN IMPUESTO"]
[1078,"ILEGALIDAD DEL ACTO ADMINISTRATIVO QUE LIQUIDA UNA CONTRIBUCION DE OBRA PUBLICA"]
[381,"ILEGALIDAD DEL ACTO ADMINISTRATIVO QUE LIQUIDA UNA CONTRIBUCION ESPECIAL"]
[382,"ILEGALIDAD DEL ACTO ADMINISTRATIVO QUE LIQUIDA UNA TASA"]
[383,"ILEGALIDAD DEL ACTO ADMINISTRATIVO QUE MODIFICA PLANTA DE PERSONAL"]
[967,"ILEGALIDAD DEL ACTO ADMINISTRATIVO QUE NIEGA ACTUALIZACION O CANCELACION DE RUT"]
[384,"ILEGALIDAD DEL ACTO ADMINISTRATIVO QUE NIEGA APORTES MINEROS"]
[386,"ILEGALIDAD DEL ACTO ADMINISTRATIVO QUE NIEGA CONDONACION DE CREDITO EDUCATIVO"]
[388,"ILEGALIDAD DEL ACTO ADMINISTRATIVO QUE NIEGA CREACION DE ZONA FRANCA"]
[392,"ILEGALIDAD DEL ACTO ADMINISTRATIVO QUE NIEGA EL RECONOCIMIENTO E INSCRIPCION O RENOVACION DE LOS USUARIOS ADUANEROS PERMANENTES"]
[394,"ILEGALIDAD DEL ACTO ADMINISTRATIVO QUE NIEGA EXPEDICION DE HOJA DE SERVICIOS"]
[395,"ILEGALIDAD DEL ACTO ADMINISTRATIVO QUE NIEGA FINANCIACION DE ESTUDIOS"]
[396,"ILEGALIDAD DEL ACTO ADMINISTRATIVO QUE NIEGA INSCRIPCION DE FUNCIONARIO EN EL REGISTRO PUBLICO DE CARRERA ADMINISTRATIVA"]
[397,"ILEGALIDAD DEL ACTO ADMINISTRATIVO QUE NIEGA INSCRIPCION DE TITULO MINERO EN EL REGISTRO MINERO"]
[969,"ILEGALIDAD DEL ACTO ADMINISTRATIVO QUE NIEGA INSCRIPCION EN EL REGISTRO UNICO DE VICTIMAS"]
[398,"ILEGALIDAD DEL ACTO ADMINISTRATIVO QUE NIEGA LA AUTORIZACION COMO DEPOSITO PUBLICO O PRIVADO DE MERCANCIAS BAJO CONTROL ADUANERO"]
[955,"ILEGALIDAD DEL ACTO ADMINISTRATIVO QUE NIEGA LA DEVOLUCION O COMPENSACION DE OBLIGACIONES ADUANERAS"]
[956,"ILEGALIDAD DEL ACTO ADMINISTRATIVO QUE NIEGA LA DEVOLUCION O COMPENSACION DE OBLIGACIONES TRIBUTARIAS"]
[399,"ILEGALIDAD DEL ACTO ADMINISTRATIVO QUE NIEGA LA HABILITACION DE LUGARES PARA EL INGRESO Y SALIDA DE MERCANCIAS BAJO CONTROL ADUANERO"]
[400,"ILEGALIDAD DEL ACTO ADMINISTRATIVO QUE NIEGA LA HOMOLOGACION O CONVALIDACION DE TITULOS OTORGADOS EN EL EXTRANJERO"]
[402,"ILEGALIDAD DEL ACTO ADMINISTRATIVO QUE NIEGA LICENCIA DE EXPLORACION MINERA"]
[403,"ILEGALIDAD DEL ACTO ADMINISTRATIVO QUE NIEGA LICENCIA DE EXPLOTACION MINERA"]
[404,"ILEGALIDAD DEL ACTO ADMINISTRATIVO QUE NIEGA LIQUIDACION OFICIAL PARA EFECTOS DE DEVOLUCION DE ARANCELES ADUANEROS"]
[405,"ILEGALIDAD DEL ACTO ADMINISTRATIVO QUE NIEGA O ADMITE ACUERDO ANTICIPADO DE PRECIOS"]
[406,"ILEGALIDAD DEL ACTO ADMINISTRATIVO QUE NIEGA O ADMITE CONTRATO DE ESTABILIDAD JURIDICA"]
[407,"ILEGALIDAD DEL ACTO ADMINISTRATIVO QUE NIEGA O ADMITE REGISTRO DE CONTRATO"]
[408,"ILEGALIDAD DEL ACTO ADMINISTRATIVO QUE NIEGA O APRUEBA CONCILIACION"]
[409,"ILEGALIDAD DEL ACTO ADMINISTRATIVO QUE NIEGA O APRUEBA CRUCE DE CUENTAS"]
[410,"ILEGALIDAD DEL ACTO ADMINISTRATIVO QUE NIEGA O APRUEBA DACION EN PAGO"]
[411,"ILEGALIDAD DEL ACTO ADMINISTRATIVO QUE NIEGA O APRUEBA FACILIDAD DE PAGO"]
[412,"ILEGALIDAD DEL ACTO ADMINISTRATIVO QUE NIEGA PERMISO PARA PORTE O TENENCIA DE ARMAS"]
[417,"ILEGALIDAD DEL ACTO ADMINISTRATIVO QUE NO ADJUDICA UN BIEN INMUEBLE"]
[418,"ILEGALIDAD DEL ACTO ADMINISTRATIVO QUE NO EFECTUA CORRECCION DE HISTORIA LABORAL"]
[429,"ILEGALIDAD DEL ACTO ADMINISTRATIVO QUE NOMBRA FUNCIONARIO PUBLICO DESCONOCIENDO EL REGIMEN DE CARRERA ADMINISTRATIVA"]
[430,"ILEGALIDAD DEL ACTO ADMINISTRATIVO QUE NOMBRA FUNCIONARIO PUBLICO DESCONOCIENDO EL REGIMEN DE CARRERA DIPLOMATICA Y CONSULAR"]
[431,"ILEGALIDAD DEL ACTO ADMINISTRATIVO QUE NOMBRA FUNCIONARIO PUBLICO DESCONOCIENDO EL REGIMEN DE CARRERA JUDICIAL"]
[432,"ILEGALIDAD DEL ACTO ADMINISTRATIVO QUE NOMBRA UN SERVIDOR PUBLICO DESCONOCIENDO EL REGIMEN DE CARRERA NOTARIAL"]
[435,"ILEGALIDAD DEL ACTO ADMINISTRATIVO QUE ORDENA EL RETIRO DE SERVIDOR PUBLICO POR CUMPLIMIENTO DE LA EDAD DE RETIRO FORZOSO"]
[437,"ILEGALIDAD DEL ACTO ADMINISTRATIVO QUE ORDENA LA DEVOLUCION DE VALORES POR REINTEGRO AL SERVICIO ACTIVO"]
[968,"ILEGALIDAD DEL ACTO ADMINISTRATIVO QUE PROFIERE LIQUIDACION OFICIAL DE CORRECCION EN ADUANAS"]
[445,"ILEGALIDAD DEL ACTO ADMINISTRATIVO QUE PROFIERE LIQUIDACION OFICIAL DE REVISION DE VALOR DEL IMPUESTO DE IMPORTACION"]
[447,"ILEGALIDAD DEL ACTO ADMINISTRATIVO QUE RECHAZA PROPUESTA DE CONTRATO DE CONCESION MINERA"]
[448,"ILEGALIDAD DEL ACTO ADMINISTRATIVO QUE RECHAZA PROPUESTA DE CONTRATO MINERO CON LAS ENTIDADES DESCENTRALIZADAS"]
[964,"ILEGALIDAD DEL ACTO ADMINISTRATIVO QUE RECHAZA SOLICITUD DEVOLUCION POR PAGO DE LO NO DEBIDO"]
[450,"ILEGALIDAD DEL ACTO ADMINISTRATIVO QUE RECONOCE PENSION - ACCION DE LESIVIDAD"]
[451,"ILEGALIDAD DEL ACTO ADMINISTRATIVO QUE REGULA LOS SERVICIOS PUBLICOS DE ENERGIA, GAS NATURAL, GLP Y COMBUSTIBLES LIQUIDOS"]
[973,"ILEGALIDAD DEL ACTO ADMINISTRATIVO QUE RESUELVE RECURSOS CONTRA LAS DECISIONES DE LOS PRESTADORES DE SERVICIOS PUBLICOS DOMICILIARIOS"]
[976,"ILEGALIDAD DEL ACTO ADMINISTRATIVO QUE RESUELVE SOBRE LA RELIQUIDACION DE VALORES CONTENIDOS EN UNA FACTURA DE SERVICIOS PUBLICOS DOMICILIARIOS"]
[456,"ILEGALIDAD DEL ACTO ADMINISTRATIVO QUE RETIRA DEL SERVICIO A MIEMBRO DE LA FUERZA PUBLICA POR PERDIDA DE LA CAPACIDAD LABORAL"]
[457,"ILEGALIDAD DEL ACTO ADMINISTRATIVO QUE REVOCA EL NOMBRAMIENTO DE FUNCIONARIO PUBLICO"]
[458,"ILEGALIDAD DEL ACTO ADMINISTRATIVO QUE REVOCA, SUSPENDE O NIEGA UN PROGRAMA DE EDUCACION SUPERIOR"]
[459,"ILEGALIDAD DEL ACTO ADMINISTRATIVO QUE SANCIONA DISCIPLINARIAMENTE A FUNCIONARIO PUBLICO POR ABANDONO DEL CARGO"]
[460,"ILEGALIDAD DEL ACTO ADMINISTRATIVO QUE SANCIONA DISCIPLINARIAMENTE A TRABAJADOR OFICIAL POR ABANDONO DEL SERVICIO"]
[462,"ILEGALIDAD DEL ACTO ADMINISTRATIVO QUE SUSPENDE EL PAGO DE LA ASIGNACION DE RETIRO"]
[463,"ILEGALIDAD DEL ACTO ADMINISTRATIVO QUE SUSPENDE EL PAGO DE PENSION"]
[470,"IMPOSICION INJUSTA DE MEDIDA DE ASEGURAMIENTO NO PRIVATIVA DE LA LIBERTAD"]
[474,"INCONSTITUCIONALIDAD DEL ACTO ADMINISTRATIVO"]
[476,"INCUMPLIMIENTO DE ACUERDO CONCILIATORIO"]
[47,"INCUMPLIMIENTO DE LA OBLIGACION DE CONSTITUCION DE GARANTIAS CONTRACTUALES"]
[479,"INCUMPLIMIENTO DE LA OBLIGACION DE SUSCRIBIR CONTRATO DE SEGURO"]
[480,"INCUMPLIMIENTO DE LAS OBLIGACIONES CONSIGNADAS EN EL ACTA DE LIQUIDACION DEL CONTRATO"]
[481,"INCUMPLIMIENTO DE LAUDO ARBITRAL"]
[482,"INCUMPLIMIENTO DE NORMA JURIDICA"]
[483,"INCUMPLIMIENTO DE REQUISITOS PARA DESIGNACION DE LIQUIDADOR"]
[484,"INCUMPLIMIENTO DE SENTENCIA JUDICIAL"]
[487,"INCUMPLIMIENTO DEL ACTO ADMINISTRATIVO QUE LIQUIDA UN CONTRATO"]
[49,"INCUMPLIMIENTO DEL CONTRATO POR EJECUCION PARCIAL DE PRESTACIONES"]
[50,"INCUMPLIMIENTO DEL CONTRATO POR EJECUCION TARDIA DE PRESTACIONES"]
[51,"INCUMPLIMIENTO DEL CONTRATO POR INDEBIDA INTERPRETACION"]
[52,"INCUMPLIMIENTO DEL CONTRATO POR NO EJECUCION DE PRESTACIONES"]
[53,"INCUMPLIMIENTO DEL CONTRATO POR VIOLACION DEL PRINCIPIO DE PLANEACION POR PARTE DE LA ENTIDAD CONTRATANTE"]
[54,"INCUMPLIMIENTO DEL CONTRATO POR VIOLACION DEL PRINCIPIO DE PLANEACION POR PARTE DEL CONTRATISTA"]
[55,"INCUMPLIMIENTO DEL DEBER DE LIQUIDAR EL CONTRATO"]
[489,"INCUMPLIMIENTO DEL DEBER DE PROTECCION A LA HONRA Y BUEN NOMBRE"]
[491,"INCUMPLIMIENTO DEL DEBER DE SEGUIMIENTO A LOS PROCESOS DE LIQUIDACION DE ENTIDADES FINANCIERAS"]
[492,"INCUMPLIMIENTO EN EL DEBER DE SEGURIDAD Y PREVENCION DE DESASTRES"]
[493,"INCUMPLIMIENTO EN EL PAGO DE APORTES AL SISTEMA DE SEGURIDAD SOCIAL INTEGRAL"]
[494,"INCUMPLIMIENTO EN EL PAGO DE APORTES PARAFISCALES"]
[495,"INCUMPLIMIENTO EN EL PAGO DE ASIGNACION DE RETIRO"]
[496,"INCUMPLIMIENTO EN EL PAGO DE AUXILIO DE CESANTIAS"]
[497,"INCUMPLIMIENTO EN EL PAGO DE COSTO ACUMULADO DE ASCENSOS EN EL ESCALAFON DOCENTE"]
[498,"INCUMPLIMIENTO EN EL PAGO DE CUOTAS DE COPROPIEDAD"]
[499,"INCUMPLIMIENTO EN EL PAGO DE HONORARIOS"]
[500,"INCUMPLIMIENTO EN EL PAGO DE INCAPACIDAD MEDICA"]
[501,"INCUMPLIMIENTO EN EL PAGO DE INCREMENTO DE PENSION DE INVALIDEZ"]
[502,"INCUMPLIMIENTO EN EL PAGO DE INCREMENTO DE PENSION DE VEJEZ"]
[503,"INCUMPLIMIENTO EN EL PAGO DE INDEMNIZACION POR DESPIDO SIN JUSTA CAUSA"]
[504,"INCUMPLIMIENTO EN EL PAGO DE INDEMNIZACION POR DISMINUCION DE CAPACIDAD LABORAL"]
[505,"INCUMPLIMIENTO EN EL PAGO DE INDEMNIZACION POR MUERTE EN ACCIDENTE DE TRABAJO"]
[981,"INCUMPLIMIENTO EN EL PAGO DE INDEMNIZACION SUSTITUTIVA DE PENSION DE SOBREVIVIENTES"]
[978,"INCUMPLIMIENTO EN EL PAGO DE INDEMNIZACION SUSTITUTIVA DE PENSION DE VEJEZ"]
[506,"INCUMPLIMIENTO EN EL PAGO DE INTERESES SOBRE EL AUXILIO DE CESANTIA"]
[507,"INCUMPLIMIENTO EN EL PAGO DE LA BONIFICACION POR COMPENSACION"]
[508,"INCUMPLIMIENTO EN EL PAGO DE LA INDEXACION Y REAJUSTE DE LA PENSION DE INVALIDEZ"]
[509,"INCUMPLIMIENTO EN EL PAGO DE LA INDEXACION Y REAJUSTE DE LA PENSION DE SOBREVIVIENTE"]
[510,"INCUMPLIMIENTO EN EL PAGO DE LA INDEXACION Y REAJUSTE DE LA PENSION DE VEJEZ"]
[986,"INCUMPLIMIENTO EN EL PAGO DE LA INDEXACION Y REAJUSTE DE PENSION SUSTITUTIVA"]
[1095,"INCUMPLIMIENTO EN EL PAGO DE LA LICENCIA DE MATERNIDAD O PATERNIDAD"]
[512,"INCUMPLIMIENTO EN EL PAGO DE LOS CANONES DE ARRENDAMIENTO"]
[513,"INCUMPLIMIENTO EN EL PAGO DE MESADA ADICIONAL"]
[514,"INCUMPLIMIENTO EN EL PAGO DE PENSION DE INVALIDEZ"]
[515,"INCUMPLIMIENTO EN EL PAGO DE PENSION DE SOBREVIVIENTE"]
[516,"INCUMPLIMIENTO EN EL PAGO DE PENSION DE VEJEZ"]
[517,"INCUMPLIMIENTO EN EL PAGO DE PENSION FAMILIAR"]
[518,"INCUMPLIMIENTO EN EL PAGO DE PENSION SUSTITUTIVA"]
[519,"INCUMPLIMIENTO EN EL PAGO DE PRESTACIONES SOCIALES"]
[520,"INCUMPLIMIENTO EN EL PAGO DE PRIMA DE ACTIVIDAD"]
[521,"INCUMPLIMIENTO EN EL PAGO DE PRIMA DE ACTUALIZACION"]
[522,"INCUMPLIMIENTO EN EL PAGO DE PRIMA DE ANTIGUEDAD"]
[523,"INCUMPLIMIENTO EN EL PAGO DE PRIMA DE SERVICIOS"]
[524,"INCUMPLIMIENTO EN EL PAGO DE PRIMA TECNICA"]
[525,"INCUMPLIMIENTO EN EL PAGO DE REAJUSTE DE LA PENSION POR LEY 4 DE 1992"]
[526,"INCUMPLIMIENTO EN EL PAGO DE REGALIAS"]
[527,"INCUMPLIMIENTO EN EL PAGO DE RETROACTIVO DE PENSION DE INVALIDEZ"]
[984,"INCUMPLIMIENTO EN EL PAGO DE RETROACTIVO DE PENSION DE SOBREVIVIENTE"]
[528,"INCUMPLIMIENTO EN EL PAGO DE RETROACTIVO DE PENSION DE VEJEZ"]
[988,"INCUMPLIMIENTO EN EL PAGO DE RETROACTIVO DE PENSION SUSTITUTIVA"]
[529,"INCUMPLIMIENTO EN EL PAGO DE SALARIO"]
[530,"INCUMPLIMIENTO EN EL PAGO DE SINIESTRO POR ASEGURADORA"]
[531,"INCUMPLIMIENTO EN EL PAGO DE SUBSIDIO DE VIVIENDA"]
[532,"INCUMPLIMIENTO EN EL PAGO DE SUBSIDIO FAMILIAR"]
[533,"INCUMPLIMIENTO EN EL PAGO DE SUSTITUCION DE LA ASIGNACION DE RETIRO"]
[534,"INCUMPLIMIENTO EN EL PAGO DE UNA OBLIGACION CON GARANTIA REAL"]
[535,"INCUMPLIMIENTO EN EL PAGO DEL AUXILIO FUNERARIO"]
[536,"INCUMPLIMIENTO EN EL RECONOCIMIENTO DE MEDICAMENTOS Y SERVICIOS INCLUIDOS O NO EN EL POS"]
[537,"INCUMPLIMIENTO EN LA CONSTITUCION DE CONSORCIOS Y/O UNIONES TEMPORALES"]
[538,"INCUMPLIMIENTO EN LA ENTREGA DE VIVIENDA DE INTERES SOCIAL"]
[539,"INCUMPLIMIENTO EN LA ENTREGA MATERIAL DE BIEN DEL TRADENTE AL ADQUIRENTE"]
[540,"INCUMPLIMIENTO EN PAGO DE OBLIGACION CONTENIDA EN TITULO VALOR"]
[541,"INDEBIDA ADECUACION FISICA DE CONSTRUCCIONES PARA PERSONAS CON ALGUNA DISCAPACIDAD"]
[543,"INDEBIDA CONSTITUCION DE SINDICATO"]
[544,"INDEBIDA INCORPORACION DE CONSCRIPTOS"]
[971,"INDEBIDA INSCRIPCION EN EL REGISTRO MERCANTIL"]
[545,"INDEBIDA LIQUIDACION DE ASIGNACION DE RETIRO"]
[546,"INDEBIDA LIQUIDACION DE BONO PENSIONAL"]
[547,"INDEBIDA LIQUIDACION DE CUOTA PARTE PENSIONAL"]
[548,"INDEBIDA LIQUIDACION DE DE COSTO ACUMULADO DE ASCENSOS EN EL ESCALAFON DOCENTE"]
[549,"INDEBIDA LIQUIDACION DE HONORARIOS"]
[550,"INDEBIDA LIQUIDACION DE INCREMENTO DE PENSION DE INVALIDEZ"]
[551,"INDEBIDA LIQUIDACION DE INCREMENTO DE PENSION DE VEJEZ"]
[552,"INDEBIDA LIQUIDACION DE INDEMNIZACION POR DESPIDO SIN JUSTA CAUSA"]
[553,"INDEBIDA LIQUIDACION DE INDEMNIZACION POR DISMINUCION DE CAPACIDAD LABORAL"]
[554,"INDEBIDA LIQUIDACION DE INDEMNIZACION POR MUERTE EN ACCIDENTE DE TRABAJO"]
[980,"INDEBIDA LIQUIDACION DE INDEMNIZACION SUSTITUTIVA DE PENSION DE SOBREVIVIENTES"]
[555,"INDEBIDA LIQUIDACION DE INDEMNIZACION SUSTITUTIVA DE PENSION DE VEJEZ"]
[556,"INDEBIDA LIQUIDACION DE INTERESES SOBRE AUXILIO DE CESANTIAS"]
[557,"INDEBIDA LIQUIDACION DE LA BONIFICACION POR COMPENSACION"]
[558,"INDEBIDA LIQUIDACION DE LA PRIMA DE SEGURO DE DEPOSITO"]
[559,"INDEBIDA LIQUIDACION DE PAGO DE INCAPACIDAD MEDICA"]
[560,"INDEBIDA LIQUIDACION DE PENSION DE INVALIDEZ"]
[561,"INDEBIDA LIQUIDACION DE PENSION DE SOBREVIVIENTE"]
[562,"INDEBIDA LIQUIDACION DE PENSION DE VEJEZ"]
[563,"INDEBIDA LIQUIDACION DE PENSION FAMILIAR"]
[564,"INDEBIDA LIQUIDACION DE PENSION SUSTITUTIVA"]
[565,"INDEBIDA LIQUIDACION DE PRESTACIONES SOCIALES"]
[566,"INDEBIDA LIQUIDACION DE PRIMA DE ACTIVIDAD"]
[567,"INDEBIDA LIQUIDACION DE PRIMA DE ACTUALIZACION"]
[568,"INDEBIDA LIQUIDACION DE PRIMA DE ANTIGUEDAD"]
[569,"INDEBIDA LIQUIDACION DE PRIMA DE SERVICIOS"]
[570,"INDEBIDA LIQUIDACION DE PRIMA TECNICA"]
[571,"INDEBIDA LIQUIDACION DE REAJUSTE DE LA PENSION POR LEY 4 DE 1992"]
[572,"INDEBIDA LIQUIDACION DE REGALIAS"]
[573,"INDEBIDA LIQUIDACION DE RETROACTIVO DE PENSION DE INVALIDEZ"]
[983,"INDEBIDA LIQUIDACION DE RETROACTIVO DE PENSION DE SOBREVIVIENTE"]
[574,"INDEBIDA LIQUIDACION DE RETROACTIVO DE PENSION DE VEJEZ"]
[1079,"INDEBIDA LIQUIDACION DE RETROACTIVO DE PENSION SUSTITUTIVA"]
[575,"INDEBIDA LIQUIDACION DE SUBSIDIO DE VIVIENDA"]
[576,"INDEBIDA LIQUIDACION DE SUBSIDIO FAMILIAR"]
[577,"INDEBIDA LIQUIDACION DE SUSTITUCION DE LA ASIGNACION DE RETIRO"]
[578,"INDEBIDA LIQUIDACION DEL AUXILIO DE CESANTIAS"]
[579,"INDEBIDA LIQUIDACION DEL AUXILIO FUNERARIO"]
[1094,"INDEBIDA LIQUIDACION DEL PAGO DE LA LICENCIA DE MATERNIDAD O PATERNIDAD"]
[580,"INDEBIDA OFICIALIZACION DE ENTIDAD FINANCIERA"]
[581,"INDEBIDA PRESTACION DE SERVICIOS FINANCIEROS"]
[582,"INDEBIDA PRESTACION DE SERVICIOS PUBLICOS DOMICILIARIOS"]
[583,"INDEBIDA PRESTACION DEL SERVICIO DE CORREO POSTAL"]
[953,"INDEBIDO MANEJO DE CADAVER"]
[584,"INDEBIDO SUMINISTRO DE PROGRAMAS, MEDIDAS O ACCIONES AFIRMATIVAS QUE PERMITAN LA INCLUSION DE LAS PERSONAS CON ALGUNA DISCAPACIDAD"]
[585,"INDEBIDO TRASLADO DE FUNCIONARIO PUBLICO"]
[586,"INDEBIDO TRASLADO DE TRABAJADOR OFICIAL"]
[594,"LESION A ALUMNO EN ESTABLECIMIENTO EDUCATIVO"]
[595,"LESION A CIVIL CON AERONAVE OFICIAL"]
[596,"LESION A CIVIL CON ARMA DE DOTACION OFICIAL"]
[597,"LESION A CIVIL CON NAVE OFICIAL"]
[598,"LESION A CIVIL CON VEHICULO OFICIAL"]
[599,"LESION A CIVIL EN COMBATE O ENFRENTAMIENTO"]
[601,"LESION A CIVIL EN ENFRENTAMIENTO ENTRE TROPAS"]
[602,"LESION A CIVIL EN OPERATIVO MILITAR"]
[603,"LESION A CIVIL EN PROCEDIMIENTO DE POLICIA"]
[604,"LESION A CIVIL POR ACTO TERRORISTA CONTRA INSTALACIONES, PERSONAJES O ELEMENTOS REPRESENTATIVOS DEL ESTADO"]
[605,"LESION A CIVIL POR ACTO TERRORISTA CONTRA POBLACION CIVIL"]
[606,"LESION A CIVIL POR EXPLOSION DE MINA ANTIPERSONAL"]
[607,"LESION A CIVIL POR GRUPO ARMADO ILEGAL"]
[608,"LESION A CONSCRIPTO CON AERONAVE OFICIAL"]
[609,"LESION A CONSCRIPTO CON ARMA DE DOTACION OFICIAL"]
[610,"LESION A CONSCRIPTO CON NAVE OFICIAL"]
[611,"LESION A CONSCRIPTO CON VEHICULO OFICIAL"]
[612,"LESION A CONSCRIPTO DERIVADA DE LA PRESTACION DEL SERVICIO DE SALUD"]
[613,"LESION A CONSCRIPTO DURANTE INSTRUCCION"]
[614,"LESION A CONSCRIPTO EN COMBATE O ENFRENTAMIENTO"]
[615,"LESION A CONSCRIPTO EN ENFRENTAMIENTO ENTRE TROPAS"]
[616,"LESION A CONSCRIPTO EN OPERATIVO MILITAR"]
[618,"LESION A CONSCRIPTO EN PROCEDIMIENTO DE POLICIA"]
[619,"LESION A CONSCRIPTO POR ACTO TERRORISTA"]
[620,"LESION A CONSCRIPTO POR EXPLOSION DE MINA ANTIPERSONAL"]
[621,"LESION A MIEMBRO VOLUNTARIO DE LA FUERZA PUBLICA CON AERONAVE OFICIAL"]
[622,"LESION A MIEMBRO VOLUNTARIO DE LA FUERZA PUBLICA CON ARMA DE DOTACION OFICIAL"]
[623,"LESION A MIEMBRO VOLUNTARIO DE LA FUERZA PUBLICA CON ARMA DE USO PERSONAL"]
[624,"LESION A MIEMBRO VOLUNTARIO DE LA FUERZA PUBLICA CON NAVE OFICIAL"]
[625,"LESION A MIEMBRO VOLUNTARIO DE LA FUERZA PUBLICA CON VEHICULO OFICIAL"]
[626,"LESION A MIEMBRO VOLUNTARIO DE LA FUERZA PUBLICA DERIVADA DE LA PRESTACION DEL SERVICIO DE SALUD"]
[627,"LESION A MIEMBRO VOLUNTARIO DE LA FUERZA PUBLICA DURANTE INSTRUCCION"]
[628,"LESION A MIEMBRO VOLUNTARIO DE LA FUERZA PUBLICA EN COMBATE O ENFRENTAMIENTO"]
[629,"LESION A MIEMBRO VOLUNTARIO DE LA FUERZA PUBLICA EN ENFRENTAMIENTO ENTRE TROPAS"]
[630,"LESION A MIEMBRO VOLUNTARIO DE LA FUERZA PUBLICA EN OPERATIVO MILITAR"]
[632,"LESION A MIEMBRO VOLUNTARIO DE LA FUERZA PUBLICA EN PROCEDIMIENTO DE POLICIA"]
[633,"LESION A MIEMBRO VOLUNTARIO DE LA FUERZA PUBLICA POR ACTO TERRORISTA"]
[634,"LESION A MIEMBRO VOLUNTARIO DE LA FUERZA PUBLICA POR EXPLOSION DE MINA ANTIPERSONAL"]
[635,"LESION A OPERADOR POR EJECUCION DE OBRA PUBLICA"]
[636,"LESION A PERSONAL DOCENTE O ADMINISTRATIVO EN ESTABLECIMIENTO EDUCATIVO"]
[638,"LESION A RECLUSO CAUSADA POR AGENTES DEL ESTADO"]
[639,"LESION A RECLUSO CAUSADA POR OTRO RECLUSO"]
[640,"LESION A RECLUSO CAUSADA POR TERCEROS"]
[641,"LESION A RECLUSO DERIVADA DE LA PRESTACION DEL SERVICIO DE SALUD"]
[642,"LESION A TERCERO POR EJECUCION DE OBRA PUBLICA"]
[643,"LESION ACCIDENTAL O FORTUITA A CONSCRIPTO"]
[644,"LESION ACCIDENTAL O FORTUITA A MIEMBRO VOLUNTARIO DE LA FUERZA PUBLICA"]
[645,"LESION ACCIDENTAL O FORTUITA A RECLUSO"]
[646,"LESION AUTO INFLIGIDA DE CONSCRIPTO"]
[647,"LESION AUTO INFLIGIDA DE MIEMBRO VOLUNTARIO DE LA FUERZA PUBLICA"]
[648,"LESION AUTO INFLIGIDA DE RECLUSO"]
[651,"LESION DE CONSCRIPTO POR DESCONOCIDOS"]
[652,"LESION DE MIEMBRO VOLUNTARIO DE LA FUERZA PUBLICA POR DESCONOCIDOS"]
[653,"LESION EN ACCIDENTE AEREO"]
[654,"LESION EN ACCIDENTE FLUVIAL"]
[655,"LESION EN ACCIDENTE MARITIMO"]
[656,"LESION EN MANIFESTACION PUBLICA"]
[657,"LESION EN OPERACION ADMINISTRATIVA"]
[658,"LESION EN ZONA DE DISTENSION"]
[26,"LESION ENORME"]
[659,"LESION POR ACTIVIDAD DEL SECTOR DE HIDROCARBUROS"]
[660,"LESION POR ACTIVIDAD MINERA"]
[661,"LESION POR ALUD DE TIERRA"]
[662,"LESION POR CAIDA DE ARBOL"]
[663,"LESION POR CONDUCCION DE ENERGIA ELECTRICA"]
[664,"LESION POR FALTA DE ADOPCION DE MEDIDAS DE PROTECCION Y SEGURIDAD"]
[665,"LESION POR FALTA DE ILUMINACION EN LA VIA PUBLICA"]
[666,"LESION POR FALTA DE SEÑALIZACION EN LA VIA PUBLICA"]
[667,"LESION POR INCUMPLIMIENTO DEL DEBER DE SEGURIDAD EN LA ATENCION HOSPITALARIA"]
[668,"LESION POR INDEBIDA O INSUFICIENTE ADOPCION DE MEDIDAS DE PROTECCION Y SEGURIDAD"]
[669,"LESION POR INDEBIDA PRESTACION DEL SERVICIO DE SALUD"]
[670,"LESION POR INDEBIDA PRESTACION DEL SERVICIO DE SALUD GINECO OBSTETRICO"]
[671,"LESION POR INDEBIDO CONSENTIMIENTO INFORMADO EN LA PRESTACION DEL SERVICIO DE SALUD"]
[672,"LESION POR INUNDACION"]
[673,"LESION POR MODIFICACION O REDUCCION DE LAS MEDIDAS DE PROTECCION Y SEGURIDAD"]
[674,"LESION POR RUINA DE EDIFICACION PUBLICA"]
[675,"LESION POR SEMOVIENTE DE PROPIEDAD DEL ESTADO"]
[676,"LESION POR USO EXCESIVO DE LA FUERZA"]
[677,"LESION POR VIA PUBLICA EN MAL ESTADO"]
[56,"MAYOR PERMANENCIA DE OBRA"]
[57,"MAYORES CANTIDADES, SOBRECOSTOS Y OBRAS ADICIONALES EN CONTRATO DE OBRA A PRECIO GLOBAL"]
[58,"MAYORES CANTIDADES, SOBRECOSTOS Y OBRAS ADICIONALES EN CONTRATO DE OBRA A PRECIO UNITARIO"]
[59,"MAYORES CANTIDADES, SOBRECOSTOS Y OBRAS ADICIONALES POR EVENTO DE FUERZA MAYOR"]
[60,"MODIFICACION Y/O REVISION DE LAS PRESTACIONES CONTRACTUALES"]
[61,"MODIFICACION Y/O REVISION DEL PLAZO CONTRACTUAL"]
[691,"MORA EN LA ENTREGA DE BIEN EMBARGADO O SECUESTRADO"]
[692,"MORA EN LA ENTREGA DE BIEN INCAUTADO U OCUPADO EN UN PROCESO PENAL"]
[695,"MUERTE ACCIDENTAL O FORTUITA A CONSCRIPTO"]
[696,"MUERTE ACCIDENTAL O FORTUITA A MIEMBRO VOLUNTARIO DE LA FUERZA PUBLICA"]
[697,"MUERTE ACCIDENTAL O FORTUITA A RECLUSO"]
[698,"MUERTE AUTO INFLIGIDA DE CONSCRIPTO"]
[699,"MUERTE AUTO INFLIGIDA DE MIEMBRO VOLUNTARIO DE LA FUERZA PUBLICA"]
[700,"MUERTE AUTO INFLIGIDA DE RECLUSO"]
[701,"MUERTE DE ALUMNO EN ESTABLECIMIENTO EDUCATIVO"]
[702,"MUERTE DE CIVIL CON AERONAVE OFICIAL"]
[703,"MUERTE DE CIVIL CON ARMA DE DOTACION OFICIAL"]
[704,"MUERTE DE CIVIL CON NAVE OFICIAL"]
[705,"MUERTE DE CIVIL CON VEHICULO OFICIAL"]
[706,"MUERTE DE CIVIL EN COMBATE O ENFRENTAMIENTO"]
[708,"MUERTE DE CIVIL EN ENFRENTAMIENTO ENTRE TROPAS"]
[709,"MUERTE DE CIVIL EN OPERATIVO MILITAR"]
[710,"MUERTE DE CIVIL EN PROCEDIMIENTO DE POLICIA"]
[711,"MUERTE DE CIVIL POR ACTO TERRORISTA CONTRA INSTALACIONES, PERSONAJES O ELEMENTOS REPRESENTATIVOS DEL ESTADO"]
[712,"MUERTE DE CIVIL POR ACTO TERRORISTA CONTRA POBLACION CIVIL"]
[714,"MUERTE DE CIVIL POR EXPLOSION DE MINA ANTIPERSONAL"]
[716,"MUERTE DE CIVIL POR GRUPO ARMADO ILEGAL"]
[717,"MUERTE DE CONSCRIPTO CON AERONAVE OFICIAL"]
[718,"MUERTE DE CONSCRIPTO CON ARMA DE DOTACION OFICIAL"]
[719,"MUERTE DE CONSCRIPTO CON NAVE OFICIAL"]
[720,"MUERTE DE CONSCRIPTO CON VEHICULO OFICIAL"]
[721,"MUERTE DE CONSCRIPTO DERIVADA DE LA PRESTACION DEL SERVICIO DE SALUD"]
[722,"MUERTE DE CONSCRIPTO EN COMBATE O ENFRENTAMIENTO"]
[723,"MUERTE DE CONSCRIPTO EN ENFRENTAMIENTO ENTRE TROPAS"]
[724,"MUERTE DE CONSCRIPTO EN INSTRUCCION"]
[725,"MUERTE DE CONSCRIPTO EN OPERATIVO MILITAR"]
[727,"MUERTE DE CONSCRIPTO EN PROCEDIMIENTO DE POLICIA"]
[728,"MUERTE DE CONSCRIPTO POR ACTO TERRORISTA"]
[729,"MUERTE DE CONSCRIPTO POR DESCONOCIDOS"]
[730,"MUERTE DE CONSCRIPTO POR EXPLOSION DE MINA ANTIPERSONAL"]
[731,"MUERTE DE MIEMBRO VOLUNTARIO DE LA FUERZA PUBLICA CON AERONAVE OFICIAL"]
[732,"MUERTE DE MIEMBRO VOLUNTARIO DE LA FUERZA PUBLICA CON ARMA DE DOTACION OFICIAL"]
[733,"MUERTE DE MIEMBRO VOLUNTARIO DE LA FUERZA PUBLICA CON ARMA DE USO PERSONAL"]
[734,"MUERTE DE MIEMBRO VOLUNTARIO DE LA FUERZA PUBLICA CON NAVE OFICIAL"]
[735,"MUERTE DE MIEMBRO VOLUNTARIO DE LA FUERZA PUBLICA CON VEHICULO OFICIAL"]
[736,"MUERTE DE MIEMBRO VOLUNTARIO DE LA FUERZA PUBLICA DERIVADA DE LA PRESTACION DEL SERVICIO DE SALUD"]
[737,"MUERTE DE MIEMBRO VOLUNTARIO DE LA FUERZA PUBLICA EN COMBATE O ENFRENTAMIENTO"]
[738,"MUERTE DE MIEMBRO VOLUNTARIO DE LA FUERZA PUBLICA EN ENFRENTAMIENTO ENTRE TROPAS"]
[739,"MUERTE DE MIEMBRO VOLUNTARIO DE LA FUERZA PUBLICA EN INSTRUCCION"]
[740,"MUERTE DE MIEMBRO VOLUNTARIO DE LA FUERZA PUBLICA EN OPERATIVO MILITAR"]
[742,"MUERTE DE MIEMBRO VOLUNTARIO DE LA FUERZA PUBLICA EN PROCEDIMIENTO DE POLICIA"]
[743,"MUERTE DE MIEMBRO VOLUNTARIO DE LA FUERZA PUBLICA POR ACTO TERRORISTA"]
[744,"MUERTE DE MIEMBRO VOLUNTARIO DE LA FUERZA PUBLICA POR DESCONOCIDOS"]
[745,"MUERTE DE MIEMBRO VOLUNTARIO DE LA FUERZA PUBLICA POR EXPLOSION DE MINA ANTIPERSONAL"]
[747,"MUERTE DE OPERADOR POR EJECUCION DE OBRA PUBLICA"]
[748,"MUERTE DE PERSONAL DOCENTE O ADMINISTRATIVO EN ESTABLECIMIENTO EDUCATIVO"]
[750,"MUERTE DE RECLUSO CAUSADA POR AGENTES DEL ESTADO"]
[751,"MUERTE DE RECLUSO CAUSADA POR OTRO RECLUSO"]
[752,"MUERTE DE RECLUSO CAUSADA POR TERCEROS"]
[753,"MUERTE DE RECLUSO DERIVADA DE LA PRESTACION DEL SERVICIO DE SALUD"]
[755,"MUERTE DE TERCERO POR EJECUCION DE OBRA PUBLICA"]
[756,"MUERTE EN ACCIDENTE AEREO"]
[757,"MUERTE EN ACCIDENTE FLUVIAL"]
[758,"MUERTE EN ACCIDENTE MARITIMO"]
[760,"MUERTE EN MANIFESTACION PUBLICA"]
[761,"MUERTE EN OPERACION ADMINISTRATIVA"]
[762,"MUERTE EN ZONA DE DISTENSION"]
[764,"MUERTE POR ACTIVIDAD DEL SECTOR DE HIDROCARBUROS"]
[765,"MUERTE POR ACTIVIDAD MINERA"]
[766,"MUERTE POR ALUD DE TIERRA"]
[768,"MUERTE POR CAIDA DE ARBOL"]
[769,"MUERTE POR CONDUCCION DE ENERGIA ELECTRICA"]
[770,"MUERTE POR FALTA DE ADOPCION DE MEDIDAS DE PROTECCION Y SEGURIDAD"]
[771,"MUERTE POR FALTA DE ILUMINACION EN LA VIA PUBLICA"]
[772,"MUERTE POR FALTA DE SEÑALIZACION EN LA VIA PUBLICA"]
[774,"MUERTE POR INCUMPLIMIENTO DEL DEBER DE SEGURIDAD EN LA ATENCION HOSPITALARIA"]
[775,"MUERTE POR INDEBIDA O INSUFICIENTE ADOPCION DE MEDIDAS DE PROTECCION Y SEGURIDAD"]
[776,"MUERTE POR INDEBIDA PRESTACION DEL SERVICIO DE SALUD"]
[777,"MUERTE POR INDEBIDA PRESTACION DEL SERVICIO DE SALUD GINECO OBSTETRICO"]
[778,"MUERTE POR INDEBIDO CONSENTIMIENTO INFORMADO EN LA PRESTACION DEL SERVICIO DE SALUD"]
[779,"MUERTE POR INUNDACION"]
[780,"MUERTE POR MODIFICACION O REDUCCION DE LAS MEDIDAS DE PROTECCION Y SEGURIDAD"]
[781,"MUERTE POR RUINA DE EDIFICACION PUBLICA"]
[782,"MUERTE POR SEMOVIENTE DE PROPIEDAD DEL ESTADO"]
[783,"MUERTE POR USO EXCESIVO DE LA FUERZA"]
[784,"MUERTE POR VIA PUBLICA EN MAL ESTADO"]
[786,"NO ACEPTACION DE ENAJENACION VOLUNTARIA DE INMUEBLE AFECTADO A UN PROYECTO DE INFRAESTRUCTURA"]
[787,"NO ACEPTACION DE LA RENUNCIA"]
[788,"NO DEVOLUCION DE APORTES A SALUD DESCONTADOS DE LA PENSION GRACIA"]
[789,"NO OTORGAMIENTO DE LICENCIA DE FUNCIONAMIENTO"]
[790,"NO OTORGAMIENTO DE LICENCIAS AMBIENTALES"]
[792,"NO PAGO DE RECOMPENSA POR DELACION"]
[793,"NO RECONOCIMIENTO BONIFICACION MENSUAL PARA LAS MADRES COMUNITARIAS Y SUSTITUTAS"]
[794,"NO RECONOCIMIENTO DE ASIGNACION DE RETIRO"]
[795,"NO RECONOCIMIENTO DE BONO PENSIONAL"]
[796,"NO RECONOCIMIENTO DE COSTO ACUMULADO DE ASCENSOS EN EL ESCALAFON DOCENTE"]
[797,"NO RECONOCIMIENTO DE CUOTA PARTE PENSIONAL"]
[798,"NO RECONOCIMIENTO DE DESCANSOS COMPENSATORIOS"]
[799,"NO RECONOCIMIENTO DE DEVOLUCION DE APORTES ENTRE ADMINISTRADORAS DEL SISTEMA DE SEGURIDAD SOCIAL INTEGRAL"]
[800,"NO RECONOCIMIENTO DE HONORARIOS"]
[801,"NO RECONOCIMIENTO DE INCREMENTO DE PENSION DE INVALIDEZ"]
[802,"NO RECONOCIMIENTO DE INCREMENTO DE PENSION DE VEJEZ"]
[804,"NO RECONOCIMIENTO DE INDEMNIZACION POR DESPIDO SIN JUSTA CAUSA"]
[805,"NO RECONOCIMIENTO DE INDEMNIZACION POR DISMINUCION DE CAPACIDAD LABORAL"]
[806,"NO RECONOCIMIENTO DE INDEMNIZACION POR MUERTE EN ACCIDENTE DE TRABAJO"]
[979,"NO RECONOCIMIENTO DE INDEMNIZACION SUSTITUTIVA DE PENSION DE SOBREVIVIENTES"]
[807,"NO RECONOCIMIENTO DE INDEMNIZACION SUSTITUTIVA DE PENSION DE VEJEZ"]
[808,"NO RECONOCIMIENTO DE INTERESES SOBRE AUXILIO DE CESANTIAS"]
[809,"NO RECONOCIMIENTO DE LA BONIFICACION POR COMPENSACION"]
[810,"NO RECONOCIMIENTO DE LA INDEXACION Y REAJUSTE DE LA ASIGNACION DE RETIRO"]
[811,"NO RECONOCIMIENTO DE LA INDEXACION Y REAJUSTE DE LA PENSION DE INVALIDEZ"]
[812,"NO RECONOCIMIENTO DE LA INDEXACION Y REAJUSTE DE LA PENSION DE SOBREVIVIENTE"]
[813,"NO RECONOCIMIENTO DE LA INDEXACION Y REAJUSTE DE LA PENSION DE VEJEZ"]
[985,"NO RECONOCIMIENTO DE LA INDEXACION Y REAJUSTE DE PENSION SUSTITUTIVA"]
[1093,"NO RECONOCIMIENTO DE LICENCIA DE MATERNIDAD O PATERNIDAD"]
[815,"NO RECONOCIMIENTO DE LOS TRES (3) MESES DE ALTA ESTABLECIDOS EN EL DECRETO 1214 DE 1990"]
[816,"NO RECONOCIMIENTO DE PAGO DE INCAPACIDAD MEDICA"]
[817,"NO RECONOCIMIENTO DE PENSION DE INVALIDEZ"]
[818,"NO RECONOCIMIENTO DE PENSION DE SOBREVIVIENTE"]
[819,"NO RECONOCIMIENTO DE PENSION DE VEJEZ"]
[820,"NO RECONOCIMIENTO DE PENSION FAMILIAR"]
[821,"NO RECONOCIMIENTO DE PENSION SUSTITUTIVA"]
[822,"NO RECONOCIMIENTO DE PRESTACIONES SOCIALES"]
[823,"NO RECONOCIMIENTO DE PRIMA DE ACTIVIDAD"]
[824,"NO RECONOCIMIENTO DE PRIMA DE ACTUALIZACION"]
[825,"NO RECONOCIMIENTO DE PRIMA DE ANTIGUEDAD"]
[826,"NO RECONOCIMIENTO DE PRIMA DE SERVICIOS"]
[827,"NO RECONOCIMIENTO DE PRIMA TECNICA"]
[828,"NO RECONOCIMIENTO DE REAJUSTE DE LA PENSION POR LEY 4 DE 1992"]
[829,"NO RECONOCIMIENTO DE REAJUSTE O NIVELACION SALARIAL"]
[830,"NO RECONOCIMIENTO DE REGALIAS"]
[831,"NO RECONOCIMIENTO DE RETROACTIVO DE PENSION DE INVALIDEZ"]
[982,"NO RECONOCIMIENTO DE RETROACTIVO DE PENSION DE SOBREVIVIENTE"]
[832,"NO RECONOCIMIENTO DE RETROACTIVO DE PENSION DE VEJEZ"]
[987,"NO RECONOCIMIENTO DE RETROACTIVO DE PENSION SUSTITUTIVA"]
[834,"NO RECONOCIMIENTO DE SUBSIDIO DE VIVIENDA"]
[835,"NO RECONOCIMIENTO DE SUBSIDIO FAMILIAR"]
[836,"NO RECONOCIMIENTO DE SUSTITUCION DE LA ASIGNACION DE RETIRO"]
[837,"NO RECONOCIMIENTO DE TIEMPO DOBLE DE SERVICIO PRESTADO EN ESTADO DE CONMOCION INTERIOR O DE GUERRA INTERNACIONAL"]
[838,"NO RECONOCIMIENTO DE VIATICOS"]
[970,"NO RECONOCIMIENTO DEL 20% DE INCREMENTO DE ASIGNACION SALARIAL MENSUAL PARA SOLDADOS PROFESIONALES SEGUN DECRETO 1794 DE 2000"]
[839,"NO RECONOCIMIENTO DEL AUXILIO DE CESANTIAS"]
[840,"NO RECONOCIMIENTO DEL AUXILIO FUNERARIO"]
[841,"NO RECONOCIMIENTO DEL INCENTIVO A LA CAPITALIZACION RURAL ESTABLECIDO EN LA LEY 101 DE 1993"]
[842,"NO RECONOCIMIENTO DEL SUBSIDIO NOTARIAL"]
[843,"NO RECONOCIMIENTO DEL TIEMPO DE SERVICIO MILITAR OBLIGATORIO"]
[847,"NO RECONOCIMIENTO EN DERECHO DE SUBSIDIOS A LOS USUARIOS DE SERVICIOS PUBLICOS DOMICILIARIOS"]
[849,"NO RESTITUCION DE BIEN INMUEBLE ARRENDADO"]
[850,"NO SUSCRIPCION DE CONTRATO DE CONCESION PORTUARIA"]
[62,"NULIDAD ABSOLUTA DEL CONTRATO ESTATAL"]
[63,"NULIDAD RELATIVA DEL CONTRATO ESTATAL"]
[854,"OCUPACION PERMANENTE DE INMUEBLE"]
[855,"OCUPACION TEMPORAL DE INMUEBLE"]
[857,"OMISION DE ASISTENCIA HUMANITARIA"]
[858,"OMISION DE LAS NORMAS DE SALUD OCUPACIONAL"]
[860,"OMISION EN LA DEVOLUCION OPORTUNA DE TRIBUTOS ADUANEROS PAGADOS EN EXCESO"]
[862,"OMISION EN LAS FUNCIONES DE INSPECCION, VIGILANCIA Y CONTROL"]
[864,"PAGO DE CONDENA O CONCILIACION POR ACTUACION DOLOSA O GRAVEMENTE CULPOSA DE SERVIDOR O EX SERVIDOR PUBLICO O PARTICULAR EN EJERCICIO DE FUNCIONES PUBLICAS"]
[867,"PERDIDA DE POSESION O TENENCIA DE BIEN"]
[868,"PERDIDA O DAÑOS A BIENES EMBARGADOS O SECUESTRADOS"]
[869,"PERDIDA O DAÑOS A BIENES INCAUTADOS U OCUPADOS EN PROCESOS PENALES"]
[870,"PERDIDA O DESTRUCCION DE TITULO VALOR"]
[27,"PERJUICIOS OCASIONADOS POR ACTAS DE JUNTA DE SOCIOS"]
[874,"PERJUICIOS OCASIONADOS POR DECLARATORIA DE ZONA DE RESERVA FORESTAL"]
[875,"PERJUICIOS OCASIONADOS POR INSTAURAR UN PROCESO JUDICIAL INFUNDADO"]
[876,"PERJUICIOS OCASIONADOS POR NO EXPEDICION DE DOCUMENTO"]
[877,"PERJUICIOS OCASIONADOS POR REESTRUCTURACION Y LIQUIDACION DE ENTIDADES DE DERECHO PRIVADO"]
[0,"PERTURBACION A LA POSESION"]
[881,"PRESCRIPCION ADQUISITIVA DE DOMINIO"]
[884,"PRESTACION INADECUADA DEL SERVICIO CATASTRAL"]
[885,"PRESTACION INADECUADA DEL SERVICIO NOTARIAL Y REGISTRAL"]
[887,"PRIVACION DE LA LIBERTAD SIN QUE MEDIE MEDIDA DE ASEGURAMIENTO"]
[9,"PRIVACION INJUSTA DE LA LIBERTAD"]
[64,"RECLAMACIONES SOBRE ASPECTOS SIN SALVEDADES EN EL ACTA DE LIQUIDACION"]
[65,"REDUCCION DE LA CLAUSULA PENAL POR INCUMPLIMIENTO PARCIAL"]
[903,"RETENCION DE CUOTAS SINDICALES"]
[904,"RETENCION ILEGAL DE BIENES"]
[907,"RETIRO ILEGAL DE ALUMNO DE ESCUELA DE FORMACION MILITAR"]
[909,"REVOCATORIA DE LICENCIA DE FUNCIONAMIENTO"]
[910,"REVOCATORIA DE LICENCIAS AMBIENTALES"]
[916,"SECUESTRO DE CIVIL"]
[917,"SECUESTRO DE CONSCRIPTO"]
[918,"SECUESTRO DE MIEMBRO VOLUNTARIO DE LA FUERZA PUBLICA"]
[920,"SIMULACION"]
[922,"SOLICITUD DE LA DIVISION MATERIAL DE BIEN INMUEBLE"]
[924,"SUBROGACION DE LOS DERECHOS DEL ASEGURADO POR RESPONSABILIDAD EN SINIESTRO"]
[927,"SUSPENSION DE LICENCIA DE FUNCIONAMIENTO"]
[928,"SUSPENSION DE LICENCIAS AMBIENTALES"]
[929,"SUSTITUCION PATRONAL"]
[972,"TRANSMISION FORZOSA DEL DERECHO REAL DE DOMINIO PRIVADO SOBRE UN BIEN A FAVOR DEL ESTADO - EXPROPIACION JUDICIAL"]
[934,"VIA DE HECHO DE LA ADMINISTRACION"]
[937,"VIOLACION A LA PROTECCION DE DATOS PERSONALES"]
[938,"VIOLACION AL DEBIDO PROCESO ADMINISTRATIVO"]
[939,"VIOLACION AL DERECHO DE POSTULACION A UN CARGO DE ELECCION POPULAR"]
[941,"VIOLACION AL REGIMEN JURIDICO DE DERECHOS DE AUTOR"]
[942,"VIOLACION AL REGIMEN JURIDICO DE PROPIEDAD INDUSTRIAL"]
[943,"VIOLACION AL REGIMEN LEGAL DE INHABILIDADES E INCOMPATIBILIDADES PARA ACCEDER A CARGO DE ELECCION POPULAR"]
[944,"VIOLACION O AMENAZA A LA LIBRE COMPETENCIA ECONOMICA"]
[945,"VIOLACION O AMENAZA A LA MORALIDAD ADMINISTRATIVA"]
[946,"VIOLACION O AMENAZA A LA SEGURIDAD Y SALUBRIDAD PUBLICAS"]
[947,"VIOLACION O AMENAZA A LOS DERECHOS DE LOS CONSUMIDORES Y USUARIOS"]
[948,"VIOLACION O AMENAZA AL GOCE DE UN AMBIENTE SANO"]
[949,"VIOLACION O AMENAZA AL GOCE DEL ESPACIO PUBLICO Y A LA UTILIZACION Y DEFENSA DE BIENES DE USO PUBLICO"]
[950,"VIOLACION O AMENAZA AL PATRIMONIO CULTURAL DE LA NACION"]
[951,"VIOLACION O AMENAZA AL PATRIMONIO PUBLICO"]
[952,"VOCACION HEREDITARIA DE BIENES"]